Workbook

Sheet MAIN MENU
K3: Self Assessment Tool
D4: START HERE | R4: END HERE
M5: RESULTS
D6: How To Instructions | I6: ENTER DATA HERE | R6: Overall Results
I9: Operating Performance Data | M9: Operating Performance Result
I14: Own Source Revenue Data | M14: Own Source Revenue Result
I19: Building and Infrastructure Asset Renewal Data | M19: Building and Infrastructure Asset Renewal Result
I24: Infrastructure Backlog Data | M24: Infrastructure Backlog Result
I29: Asset Maintenance Data | M29: Asset Maintenance Result
I34: Debt Service Data | M34: Debt Service Result
I39: Real Operating Expenditure Per Capita Data | M39: Real Operating Expenditure Per Capita Result

Sheet INSTRUCTIONS
B2: INSTRUCTIONS
D5: The Council of the Shire of Wakool
B6: COUNCILS ARE TO USE ONLY GENERAL FUND DATA FOR THIS PURPOSE

Sheet INFO OP
B2: OPERATING PERFORMANCE RATIO
B3: =INSTRUCTIONS!D5 -> The Council of the Shire of Wakool
B4: Total continuing operating revenue (exc. capital grants and contributions) less operating expenses
B5: Total continuing operating revenue (exc. capital grants and contributions)
B7: Description and Rationale for Criteria:
B8: · TCorp in their review of financial sustainability of local government found that operating performance was a core measure of financial sustainability.
B9: · Ongoing operating deficits are unsustainable and they are one of the key financial sustainability challenges facing the sector as a whole. While operating deficits are acceptable over a short period, consistent deficits will not allow Councils to maintain or increase their assets and services or execute their infrastructure plans.
B10: · Operating performance ratio is an important measure as it provides an indication of how a Council generates revenue and allocates expenditure (e.g. asset maintenance, staffing costs). It is an indication of continued capacity to meet on-going expenditure requirements.
B12: Description and Rationale for Benchmark:
B13: · TCorp recommended that all Councils should be at least break even operating position or better, as a key component of financial sustainability. Consistent with this recommendation the benchmark for this criteria is greater than or equal to break even over a 3 year period.

Sheet INFO OSR
B2: OWN SOURCE REVENUE RATIO
B3: =INSTRUCTIONS!D5 -> The Council of the Shire of Wakool
B4: Total continuing operating revenue less all grants and contributions
B5: Total continuing operating revenue inclusive of capital grants and contributions
B7: Description and Rationale for Criteria:
B8: · Own source revenue measures the degree of reliance on external funding sources (e.g. grants and contributions). This ratio measures fiscal flexibility and robustness. Financial flexibility increases as the level of own source revenue increases. It also gives councils greater ability to manage external shocks or challenges.
B9: · Councils with higher own source revenue have greater ability to control or manage their own operating performance and financial sustainability.
B11: Description and Rationale for Benchmark:
B12: · TCorp has used a benchmark for own source revenue of greater than 60 per cent of total operating revenue. All Councils should aim to meet or exceed this benchmark over a three year period.
B13: · It is acknowledged that many councils have limited options in terms of increasing its own source revenue, especially in rural areas. However, 60 per cent is considered the lowest level at which councils have the flexibility necessary to manage external shocks and challenges.

Sheet INFO BIAR
B2: BUILDING AND INFRASTRUCTURE ASSET RENEWAL RATIO
B3: =INSTRUCTIONS!D5 -> The Council of the Shire of Wakool
B4: Asset renewals (building and infrastructure)
B5: Depreciation, amortisation and impairment (building and infrastructure)
B8: Description and Rationale for Criteria:
B9: · The building and infrastructure renewals ratio represents the replacement or refurbishment of existing assets to an equivalent capacity or performance, as opposed to the acquisition of new assets or the refurbishment of old assets that increase capacity or performance. The ratio compares the proportion spent on infrastructure asset renewals and the asset’s deterioration.
B10: · This is a consistent measure that can be applied across councils of different sizes and locations. A higher ratio is an indicator of strong performance.
B12: Description and Rationale for Benchmark:
B13: · Performance of less than one hundred percent indicates that a Council’s existing assets are deteriorating faster than they are being renewed and that potentially council’s infrastructure backlog is worsening. Councils with consistent asset renewals deficits will face degradation of building and infrastructure assets over time.
B14: · Given that a ratio of greater than one hundred percent is adopted, to recognise that capital expenditures are sometimes lumpy and can be lagged, performance is averaged over three years.

Sheet INFO IB
B2: INFRASTRUCTURE BACKLOG RATIO
B3: =INSTRUCTIONS!D5 -> The Council of the Shire of Wakool
B4: Estimated cost to bring assets to a satisfactory condition
B5: Total (WDV) of infrastructure, buildings, other structures and depreciable land improvement assets
B7: Description and Rationale for Criteria:
B8: · The infrastructure backlog ratio indicates the proportion of backlog against the total value of the Council’s infrastructure assets. It is a measure of the extent to which asset renewal is required to maintain or improve service delivery in a sustainable way. This measures how councils are managing their infrastructure which is so critical to effective community sustainability.
B9: · It is acknowledged, that the reliability of infrastructure data within NSW local government is mixed. However, as asset management practices within councils improve, it is anticipated that infrastructure reporting data reliability and quality will increase.
B10: · This is a consistent measure that can be applied across councils of different sizes and locations. A low ratio is an indicator of strong performance.
B11: Description and Rationale for Benchmark:
B12: · High infrastructure backlog ratios and an inability to reduce this ratio in the near future indicate an underperforming Council in terms of infrastructure management and delivery. Councils with increasing infrastructure backlogs will experience added pressure in maintaining service delivery and financing current and future infrastructure demands.
B13: · TCorp adopted a benchmark of less than 2 per cent to be consistently applied across councils. The application of this benchmark reflects the State Government’s focus on reducing infrastructure backlogs.

Sheet INFO AM
B2: ASSET MAINTENANCE RATIO
B3: =INSTRUCTIONS!D5 -> The Council of the Shire of Wakool
B4: Actual asset maintenance
B5: Required asset maintenance
B7: Description and Rationale for Criteria:
B8: · The asset maintenance ratio reflects the actual asset maintenance expenditure relative to the required asset maintenance as measured by an individual council.
B9: · The ratio provides a measure of the rate of asset degradation (or renewal) and therefore has a role in informing asset renewal and capital works planning.
B11: Description and Rationale for Benchmark:
B12: · The benchmark adopted is greater than one hundred percent, which implies that asset maintenance expenditure exceeds the council identified requirements. This benchmark is consistently adopted by the NSW Treasury Corporation (TCORP). A ratio of less than one hundred percent indicates that there may be a worsening infrastructure backlog.
B13: · Given that a ratio of greater than one hundred percent is adopted, to recognise that maintenance expenditure is sometimes lumpy and can be lagged, performance is averaged over three years.

Sheet INFO DS
B2: DEBT SERVICE RATIO
B3: =INSTRUCTIONS!D5 -> The Council of the Shire of Wakool
B4: Cost of debt service (interest expense & principal repayments)
B5: Total continuing operating revenue (exc. capital grants and contributions)
B7: Description and Rationale for Criteria:
B8: · Prudent and active debt management is a key part of Councils’ approach to both funding and managing infrastructure and services over the long term.
B9: · Prudent debt usage can also assist in smoothing funding costs and promoting intergenerational equity. Given the long life of many council assets it is appropriate that the cost of these assets should be equitably spread across the current and future generations of users and ratepayers. Effective debt usage allows councils to do this.
B10: · Inadequate use of debt may mean that councils are forced to raise rates that a higher than necessary to fund long life assets or inadequately fund asset maintenance and renewals. It is also a strong proxy indicator of a council’s strategic capacity.
B11: · Council’s effectiveness in this area is measured by the Debt Service Ratio.
B13: Description and Rationale for Benchmark:
B14: · As outlined above, it is appropriate for Councils to hold some level of debt given their role in the provision and maintenance of key infrastructure and services for their community. It is considered reasonable for Councils to maintain a Debt Service Ratio of greater than 0 and less than or equal to 20 per cent.
B15: · Councils with low or zero debt may incorrectly place the funding burden on current ratepayers when in fact it should be spread across generations, who also benefit from the assets. Likewise high levels of debt generally indicate a weakness in financial sustainability and/or poor balance sheet management.

Sheet INFO ROEPC
B2: REAL OPERATING EXPENDITURE PER CAPITA
B3: =INSTRUCTIONS!D5 -> The Council of the Shire of Wakool
B5: Description and Rationale for Criteria:
B6: · At the outset it is acknowledged the difficulty in measuring public sector efficiency. This is because there is a range of difficulty in reliably and accurately measuring output.
B7: · The capacity to secure economies of scale over time is a key indicator of operating efficiency. The capacity to secure efficiency improvements can be measured with respect to a range of factors, for example population, assets, and financial turnover.
B8: · It is challenging to measure productivity changes over time. To overcome this, changes in real per capita expenditure was considered to assess how effectively Councils:
C9: - can realise natural efficiencies as population increases (through lower average cost of service delivery and representation); and
C10: - can make necessary adjustments to maintain current efficiency if population is declining (e.g. appropriate reductions in staffing or other costs).
B11: · Assuming that service levels remain constant, decline in real expenditure per capita indicates efficiency improvements (i.e. the same level of output per capita is achieved with reduced expenditure).
B13: Description and Rationale for Benchmark:
B14: · The measure 'trends in real expenditure per capita' reflects how the value of inflation adjusted inputs per person has grown over time. In the calculation, the expenditure is deflated by the Consumer Price Index (for 2009-11) and the Local Government Cost Index (for 2011-14) as published by the Independent Pricing and Regulatory Tribunal (IPART). It is acknowledged that efficiency and service levels are impacted by a broad range of factors, and that it is unreasonable to establish an absolute benchmark across Councils. It is also acknowledged that council service levels are likely to change for a variety of reasons however, it is important that councils prioritise or set service levels in conjunction with their community, in the context of their development of their Integrated Planning and Reporting.
B15: · Councils will be assessed on a joint consideration of the direction and magnitude of their improvement or deterioration in real expenditure per capita. Given that efficiency improvements require some time for the results to be fully achieved and as a result, this analysis will be based on a 5-year trend.

Sheet DATA OP
B2: GENERAL FUND - OPERATING PERFORMANCE DATA
B3: =INSTRUCTIONS!D5 -> The Council of the Shire of Wakool
C4: 2011-12 GENERAL FUND DATA $000 | E4: 2012-13 GENERAL FUND DATA $000 | G4: 2013-14 GENERAL FUND DATA $000
B5: Note 21- Income Statement - Income - Total Income from continuing operations | C5: 16146 | E5: 16906 | G5: 14707
B7: Note 21 - Income Statement - Income - Grants & Contributions Provided For Capital Purposes | C7: 3053 | E7: 826 | G7: 1240
B9: Note 21 - Income Statement - Income - Net gain from the disposal of assets | C9: 0 | E9: 27 | G9: 0
B11: Note 21 - Income Statement - Income - Net share of interests in joint ventures/associates using the equity method | C11: 0 | E11: 0 | G11: 0
B13: # Interest & Investment Revenue - Fair value adjustments - Investments | C13: 0 | E13: 0 | G13: 0
B15: # Interest & Investment Revenue - Fair value adjustments - Other | C15: 0 | E15: 0 | G15: 0
B17: # Other Revenues - Fair value adjustments - investment properties | C17: 0 | E17: 0 | G17: 0
B19: # Other Revenues - Reversal of IPPE revaluation decrements previously expensed | C19: 0 | E19: 0 | G19: 0
B21: Note 21 - Income Statement - Expenses - Total expenses from continuing operations | C21: 15307 | E21: 15503 | G21: 15059
B23: Note 21 - Income Statement - Expenses - Net Loss from the disposal of assets | C23: 211 | E23: 0 | G23: 189
B25: Note 21 - Income Statement - Expenses - Net share of interests in joint ventures/associates using the equity method | C25: 0 | E25: 0 | G25: 0
B27: * Other Expenses - Revaluation Decrements | C27: 0 | E27: 0 | G27: 0
B30: # For reporting purposes the consolidated data comes from Note 3. For this purpose, only enter data that relates to the General Fund
B32: * For reporting purposes the consolidated data comes from Note 4. For this purpose, only enter data that relates to the General Fund

Sheet DATA OSR
B2: GENERAL FUND - OWN SOURCE REVENUE DATA
B3: =INSTRUCTIONS!D5 -> The Council of the Shire of Wakool
C4: 2011-12 GENERAL FUND DATA $000 | E4: 2012-13 GENERAL FUND DATA $000 | G4: 2013-14 GENERAL FUND DATA $000
B5: Note 21- Income Statement - Income - Total Income from continuing operations | C5: ='DATA OP'!C5 -> 16146 | E5: ='DATA OP'!E5 -> 16906 | G5: ='DATA OP'!G5 -> 14707
B7: Note 21 - Income Statement - Income - Operating Revenues - Grants & Contributions Provided For Operating Purposes | C7: =6811-2480-1701 -> 2630 | E7: =9176-1555-1724 -> 5897 | G7: =6441-1104-669 -> 4668
B9: Note 21 - Income Statement - Income - Grants & Contributions Provided For Capital Purposes | C9: ='DATA OP'!C7 -> 3053 | E9: ='DATA OP'!E7 -> 826 | G9: ='DATA OP'!G7 -> 1240
B11: Note 21 - Income Statement - Income - Net gain from the disposal of assets | C11: ='DATA OP'!C9 -> 0 | E11: ='DATA OP'!E9 -> 27 | G11: ='DATA OP'!G9 -> 0
B13: Note 21 - Income Statement - Income - Net share of interests in joint ventures/associates using the equity method | C13: ='DATA OP'!C11 -> 0 | E13: ='DATA OP'!E11 -> 0 | G13: ='DATA OP'!G11 -> 0
B15: # Interest & Investment Revenue - Fair value adjustments - Investments | C15: ='DATA OP'!C13 -> 0 | E15: ='DATA OP'!E13 -> 0 | G15: ='DATA OP'!G13 -> 0
B17: # Interest & Investment Revenue - Fair value adjustments - Other | C17: ='DATA OP'!C15 -> 0 | E17: ='DATA OP'!E15 -> 0 | G17: ='DATA OP'!G15 -> 0
B19: # Other Revenues - Fair value adjustments - investment properties | C19: ='DATA OP'!C17 -> 0 | E19: ='DATA OP'!E17 -> 0 | G19: ='DATA OP'!G17 -> 0
B21: # Other Revenues - Reversal of IPPE revaluation decrements previously expensed | C21: ='DATA OP'!C19 -> 0 | E21: ='DATA OP'!E19 -> 0 | G21: 0
B24: # See Operating Performance data sheet notes.

Sheet DATA BIAR
B2: GENERAL FUND - BUILDING AND INFRASTRUCTURE ASSET RENEWAL DATA
B3: =INSTRUCTIONS!D5 -> The Council of the Shire of Wakool
C4: 2011-12 GENERAL FUND DATA $000 | E4: 2012-13 GENERAL FUND DATA $000 | G4: 2013-14 GENERAL FUND DATA $000
B5: # Building and Infrastructure Renewals | C5: 3789 | E5: 4334 | G5: 5061
B7: # Depreciation, Amortisation and Impairment (Building and Infrastructure) | C7: 6530 | E7: 5124 | G7: 4837
B9: # For reporting purposes the consolidated data comes from Note 13 (11-12, 12-13) and Special Schedule 7 (13-14). For this purpose, only enter data that relates to the General Fund.

Sheet DATA IB
B2: GENERAL FUND - INFRASTRUCTURE BACKLOG DATA
B3: =INSTRUCTIONS!D5 -> The Council of the Shire of Wakool
D4: 2013-14 GENERAL FUND DATA $000
B5: # Estimated cost to bring assets to a satisfactory condition | D5: 43986
B7: * Total (written down value) of infrastructure, buildings, other structures & depreciable land improvement assets. | D7: 159078
B10: # For reporting purposes the consolidated data is collected from Special Schedule 7. For this purpose, only enter data that relates to the General Fund.
B12: * For reporting purposes the consolidated data comes from Note 9/Special Schedule 7 . For this purpose, only enter data that relates to the General Fund.

Sheet DATA AM
B2: GENERAL FUND - ASSET MAINTENANCE DATA
B3: =INSTRUCTIONS!D5 -> The Council of the Shire of Wakool
C4: 2011-12 GENERAL FUND DATA $000 | E4: 2012-13 GENERAL FUND DATA $000 | G4: 2013-14 GENERAL FUND DATA $000
B5: # Actual Annual Maintenance | C5: 3193 | E5: 2209 | G5: 2463
B7: # Required Annual Maintenance | C7: 3517 | E7: 2230 | G7: 2340
B9: # For reporting purposes the consolidated data comes from Special Schedule 7. For this purpose, only enter data that relates to the General Fund.

Sheet DATA DS
B2: GENERAL FUND - DEBT SERVICE DATA
B3: =INSTRUCTIONS!D5 -> The Council of the Shire of Wakool
C4: 2011-12 GENERAL FUND DATA $000 | E4: 2012-13 GENERAL FUND DATA $000 | G4: 2013-14 GENERAL FUND DATA $000
B5: @ Financing Activities - Payments - Borrowings & Advances | C5: 545 | E5: 536 | G5: 711
B7: * Interest Charges - Interest on Loans | C7: 206 | E7: 163 | G7: 240
B9: Note 21- Income Statement - Income - Total Income from continuing operations | C9: ='DATA OP'!C5 -> 16146 | E9: ='DATA OP'!E5 -> 16906 | G9: ='DATA OP'!G5 -> 14707
B11: Note 21 - Income Statement - Income - Grants & Contributions Provided For Capital Purposes | C11: ='DATA OP'!C7 -> 3053 | E11: ='DATA OP'!E7 -> 826 | G11: ='DATA OP'!G7 -> 1240
B13: Note 21 - Income Statement - Income - Net gain from the disposal of assets | C13: ='DATA OP'!C9 -> 0 | E13: ='DATA OP'!E9 -> 27 | G13: ='DATA OP'!G9 -> 0
B15: Note 21 - Income Statement - Income - Net share of interests in joint ventures/associates using the equity method | C15: ='DATA OP'!C11 -> 0 | E15: ='DATA OP'!E11 -> 0 | G15: ='DATA OP'!G11 -> 0
B17: # Interest & Investment Revenue - Fair value adjustments - Investments | C17: ='DATA OP'!C13 -> 0 | E17: ='DATA OP'!E13 -> 0 | G17: ='DATA OP'!G13 -> 0
B19: # Interest & Investment Revenue - Fair value adjustments - Other | C19: ='DATA OP'!C15 -> 0 | E19: ='DATA OP'!E15 -> 0 | G19: ='DATA OP'!G15 -> 0
B21: # Other Revenues - Fair value adjustments - investment properties | C21: ='DATA OP'!C17 -> 0 | E21: ='DATA OP'!E17 -> 0 | G21: ='DATA OP'!G17 -> 0
B23: # Other Revenues - Reversal of IPPE revaluation decrements previously expensed | C23: ='DATA OP'!C19 -> 0 | E23: ='DATA OP'!E19 -> 0 | G23: ='DATA OP'!G19 -> 0
B25: Note:- Figures to be entered as positive amounts
B27: @ For reporting purposes the consolidated data comes from the Statement of Cashflows. For this purpose, only enter data that relates to the General Fund.
B29: * For reporting purposes the consolidated data comes from Note 4. For this purpose, only enter data that relates to the General Fund
B30: # See Operating Performance data sheet note

Sheet DATA ROEPC
B2: GENERAL FUND - REAL OPERATING EXPENDITURE PER CAPITA DATA
B3: =INSTRUCTIONS!D5 -> The Council of the Shire of Wakool
B5: # Population Data | C5: =IF(ISERROR(VLOOKUP(B3,POPULATION!B9:Y160,17,FALSE)),"",VLOOKUP(B3,POPULATION!B9:Y160,17,FALSE)) -> 4174.5 | E5: =IF(ISERROR(VLOOKUP(B3,POPULATION!B9:Y160,19,FALSE)),"",VLOOKUP(B3,POPULATION!B9:Y160,19,FALSE)) -> 4106.5 | G5: =IF(ISERROR(VLOOKUP(B3,POPULATION!B9:Y160,21,FALSE)),"",VLOOKUP(B3,POPULATION!B9:Y160,21,FALSE)) -> 4055.5 | I5: =IF(ISERROR(VLOOKUP(B3,POPULATION!B9:Y160,23,FALSE)),"",VLOOKUP(B3,POPULATION!B9:Y160,23,FALSE)) -> 4008.5 | K5: =IF(ISERROR(VLOOKUP(B3,POPULATION!B9:Y160,24,FALSE)),"",VLOOKUP(B3,POPULATION!B9:Y160,24,FALSE)) -> 3979
C6: 2009-10 GENERAL FUND DATA $000 | E6: 2010-11 GENERAL FUND DATA $000 | G6: 2011-12 GENERAL FUND DATA $000 | I6: 2012-13 GENERAL FUND DATA $000 | K6: 2013-14 GENERAL FUND DATA $000
B7: Note 21 - Income Statement - Expenses - Total expenses from continuing operations | C7: 20360 | E7: 15569 | G7: ='DATA OP'!C21 -> 15307 | I7: ='DATA OP'!E21 -> 15503 | K7: ='DATA OP'!G21 -> 15059
B9: Note 21 - Income Statement - Expenses - Net Loss from the disposal of assets | C9: 7541 | E9: 381 | G9: ='DATA OP'!C23 -> 211 | I9: ='DATA OP'!E23 -> 0 | K9: ='DATA OP'!G23 -> 189
B11: Note 21 - Income Statement - Expenses - Net share of interests in joint ventures/associates using the equity method | C11: 0 | E11: 0 | G11: ='DATA OP'!C25 -> 0 | I11: ='DATA OP'!E25 -> 0 | K11: ='DATA OP'!G25 -> 0
B13: * Other Expenses - Revaluation Decrements | C13: 0 | E13: 0 | G13: ='DATA OP'!C27 -> 0 | I13: ='DATA OP'!E27 -> 0 | K13: ='DATA OP'!G27 -> 0
B16: # Australian Bureau of Statistics, Regional Population Growth, Australia - Table 1. Estimated Resident Population, Local Government Areas, New South Wales - Released 3.4.2014. The population data has been averaged over 2 calendar years except for the 2013-14 year where the population data for 2013 has been used.
B18: * See Operating Performance data sheet note.

Sheet CALC OP
B2: GENERAL FUND - OPERATING PERFORMANCE RESULT
B3: =INSTRUCTIONS!D5 -> The Council of the Shire of Wakool
B5: BENCHMARK AND RESULT
B6: Benchmark:- | C6: Greater or equal to break-even average over 3 years
D8: 2011-12 | E8: 2012-13 | F8: 2013-14 | G8: Average over 3 years
B9: Result | D9: =IF(ISERR(SUM(('DATA OP'!C5-'DATA OP'!C7-'DATA OP'!C9-'DATA OP'!C11-'DATA OP'!C13-'DATA OP'!C15-'DATA OP'!C17-'DATA OP'!C19-'DATA OP'!C21-'DATA OP'!C23-'DATA OP'!C25-'DATA OP'!C27)/SUM('DATA OP'!C5-'DATA OP'!C7-'DATA OP'!C9-'DATA OP'!C11-'DATA OP'!C13-'DATA OP'!C15-'DATA OP'!C17-'DATA OP'!C19))),"",SUM(('DATA OP'!C5-'DATA OP'!C7-'DATA OP'!C9-'DATA OP'!C11-'DATA OP'!C13-'DATA OP'!C15-'DATA OP'!C17-'DATA OP'!C19-'DATA OP'!C21-'DATA OP'!C23-'DATA OP'!C25-'DATA OP'!C27)/SUM('DATA OP'!C5-'DATA OP'!C7-'DATA OP'!C9-'DATA OP'!C11-'DATA OP'!C13-'DATA OP'!C15-'DATA OP'!C17-'DATA OP'!C19))) -> -0.1852134728 | E9: =IF(ISERR(SUM(('DATA OP'!E5-'DATA OP'!E7-'DATA OP'!E9-'DATA OP'!E11-'DATA OP'!E13-'DATA OP'!E15-'DATA OP'!E17-'DATA OP'!E19-'DATA OP'!E21-'DATA OP'!E23-'DATA OP'!E25-'DATA OP'!E27)/SUM('DATA OP'!E5-'DATA OP'!E7-'DATA OP'!E9-'DATA OP'!E11-'DATA OP'!E13-'DATA OP'!E15-'DATA OP'!E17-'DATA OP'!E19))),"",SUM(('DATA OP'!E5-'DATA OP'!E7-'DATA OP'!E9-'DATA OP'!E11-'DATA OP'!E13-'DATA OP'!E15-'DATA OP'!E17-'DATA OP'!E19-'DATA OP'!E21-'DATA OP'!E23-'DATA OP'!E25-'DATA OP'!E27)/SUM('DATA OP'!E5-'DATA OP'!E7-'DATA OP'!E9-'DATA OP'!E11-'DATA OP'!E13-'DATA OP'!E15-'DATA OP'!E17-'DATA OP'!E19))) -> 0.03426150875 | F9: =IF(ISERR(SUM(('DATA OP'!G5-'DATA OP'!G7-'DATA OP'!G9-'DATA OP'!G11-'DATA OP'!G13-'DATA OP'!G15-'DATA OP'!G17-'DATA OP'!G19-'DATA OP'!G21-'DATA OP'!G23-'DATA OP'!G25-'DATA OP'!G27)/SUM('DATA OP'!G5-'DATA OP'!G7-'DATA OP'!G9-'DATA OP'!G11-'DATA OP'!G13-'DATA OP'!G15-'DATA OP'!G17-'DATA OP'!G19))),"",SUM(('DATA OP'!G5-'DATA OP'!G7-'DATA OP'!G9-'DATA OP'!G11-'DATA OP'!G13-'DATA OP'!G15-'DATA OP'!G17-'DATA OP'!G19-'DATA OP'!G21-'DATA OP'!G23-'DATA OP'!G25-'DATA OP'!G27)/SUM('DATA OP'!G5-'DATA OP'!G7-'DATA OP'!G9-'DATA OP'!G11-'DATA OP'!G13-'DATA OP'!G15-'DATA OP'!G17-'DATA OP'!G19))) -> -0.1322492018 | G9: =IF(ISERR(AVERAGE(SUM(J36,J41,J47)/SUM(J37,J42,J48))),"",AVERAGE(SUM(J36,J41,J47)/SUM(J37,J42,J48))) -> -0.08579541454
B10: Benchmark | D10: 0 | E10: 0 | F10: 0 | G10: 0
J16: MEETS THE FFTF BENCHMARK
J19: =IF(G9>=0,"YES","NO") -> NO
B28: This is how we calculated the council's result…..
B29: (Figures are carried over from the data sheet and are in $000)
B31: Total continuing operating revenue (exc. capital grants and contributions) less operating expenses
B32: Total continuing operating revenue (exc. capital grants and contributions)
C33: ( | D33: =VLOOKUP('DATA OP'!B5,'DATA OP'!B5:G27,2,FALSE) -> 16146 | E33: - | F33: =VLOOKUP('DATA OP'!B7,'DATA OP'!B5:G27,2,FALSE) -> 3053 | G33: - | H33: =VLOOKUP('DATA OP'!B9,'DATA OP'!B5:G27,2,FALSE) -> 0 | I33: - | J33: =VLOOKUP('DATA OP'!B11,'DATA OP'!B5:G27,2,FALSE) -> 0 | K33: - | L33: =VLOOKUP('DATA OP'!B13,'DATA OP'!B5:G27,2,FALSE) -> 0 | M33: - | N33: =VLOOKUP('DATA OP'!B15,'DATA OP'!B5:G27,2,FALSE) -> 0 | O33: - | P33: =VLOOKUP('DATA OP'!B17,'DATA OP'!B5:G27,2,FALSE) -> 0 | Q33: - | R33: =VLOOKUP('DATA OP'!B19,'DATA OP'!B5:G27,2,FALSE) -> 0 | S33: ) | T33: - | U33: ( | V33: =VLOOKUP('DATA OP'!B21,'DATA OP'!B5:G27,2,FALSE) -> 15307 | W33: - | X33: =VLOOKUP('DATA OP'!B23,'DATA OP'!B5:G27,2,FALSE) -> 211 | Y33: - | Z33: =VLOOKUP('DATA OP'!B25,'DATA OP'!B5:G27,2,FALSE) -> 0 | AA33: - | AB33: =VLOOKUP('DATA OP'!B27,'DATA OP'!B5:G27,2,FALSE) -> 0 | AC33: )
C34: ( | D34: =VLOOKUP('DATA OP'!B5,'DATA OP'!B5:G27,2,FALSE) -> 16146 | E34: - | F34: =VLOOKUP('DATA OP'!B7,'DATA OP'!B5:G27,2,FALSE) -> 3053 | G34: - | H34: =VLOOKUP('DATA OP'!B9,'DATA OP'!B6:G28,2,FALSE) -> 0 | I34: - | J34: =VLOOKUP('DATA OP'!B11,'DATA OP'!B6:G28,2,FALSE) -> 0 | K34: - | L34: =VLOOKUP('DATA OP'!B13,'DATA OP'!B6:G28,2,FALSE) -> 0 | M34: - | N34: =VLOOKUP('DATA OP'!B15,'DATA OP'!B6:G28,2,FALSE) -> 0 | O34: - | P34: =VLOOKUP('DATA OP'!B17,'DATA OP'!B6:G28,2,FALSE) -> 0 | Q34: - | R34: =VLOOKUP('DATA OP'!B19,'DATA OP'!B6:G28,2,FALSE) -> 0 | S34: )
B36: 2011-12 | C36: =CONCATENATE(C33,D33,E33,F33,G33,H33,I33,J33,K33,L33,M33,N33,O33,P33,Q33,R33,S33,T33,U33,V33,W33,X33,Y33,Z33,AA33,AB33,AC33) -> (16146-3053-0-0-0-0-0-0)-(15307-211-0-0) | I36: = | J36: =SUM(('DATA OP'!C5-'DATA OP'!C7-'DATA OP'!C9-'DATA OP'!C11-'DATA OP'!C13-'DATA OP'!C15-'DATA OP'!C17-'DATA OP'!C19-'DATA OP'!C21-'DATA OP'!C23-'DATA OP'!C25-'DATA OP'!C27)) -> -2425 | K36: = | L36: =D9 -> -0.1852134728
C37: =CONCATENATE(D34,E34,F34,G34,H34,I34,J34,K34,L34,M34,N34,O34,P34,Q34,R34,) -> 16146-3053-0-0-0-0-0-0 | J37: =SUM('DATA OP'!C5-'DATA OP'!C7-'DATA OP'!C9-'DATA OP'!C11-'DATA OP'!C13-'DATA OP'!C15-'DATA OP'!C17-'DATA OP'!C19) -> 13093
C39: ( | D39: =VLOOKUP('DATA OP'!B5,'DATA OP'!B5:G27,4,FALSE) -> 16906 | E39: - | F39: =VLOOKUP('DATA OP'!B7,'DATA OP'!B5:G27,4,FALSE) -> 826 | G39: - | H39: =VLOOKUP('DATA OP'!B9,'DATA OP'!B5:G27,4,FALSE) -> 27 | I39: - | J39: =VLOOKUP('DATA OP'!B11,'DATA OP'!B5:G27,4,FALSE) -> 0 | K39: - | L39: =VLOOKUP('DATA OP'!B13,'DATA OP'!B5:G27,4,FALSE) -> 0 | M39: - | N39: =VLOOKUP('DATA OP'!B15,'DATA OP'!B5:G27,4,FALSE) -> 0 | O39: - | P39: =VLOOKUP('DATA OP'!B17,'DATA OP'!B5:G27,4,FALSE) -> 0 | Q39: - | R39: =VLOOKUP('DATA OP'!B19,'DATA OP'!B5:G27,4,FALSE) -> 0 | S39: ) | T39: - | U39: ( | V39: =VLOOKUP('DATA OP'!B21,'DATA OP'!B5:G27,4,FALSE) -> 15503 | W39: - | X39: =VLOOKUP('DATA OP'!B23,'DATA OP'!B5:G27,4,FALSE) -> 0 | Y39: - | Z39: =VLOOKUP('DATA OP'!B25,'DATA OP'!B5:G27,4,FALSE) -> 0 | AA39: - | AB39: =VLOOKUP('DATA OP'!B27,'DATA OP'!B5:G27,4,FALSE) -> 0 | AC39: )
C40: ÷ SUM( | D40: =VLOOKUP('DATA OP'!B5,'DATA OP'!B5:G27,4,FALSE) -> 16906 | E40: - | F40: =VLOOKUP('DATA OP'!B7,'DATA OP'!B6:G28,4,FALSE) -> 826 | G40: - | H40: =VLOOKUP('DATA OP'!B9,'DATA OP'!B6:G28,4,FALSE) -> 27 | I40: - | J40: =VLOOKUP('DATA OP'!B11,'DATA OP'!B6:G28,4,FALSE) -> 0 | K40: - | L40: =VLOOKUP('DATA OP'!B13,'DATA OP'!B6:G28,4,FALSE) -> 0 | M40: - | N40: =VLOOKUP('DATA OP'!B15,'DATA OP'!B6:G28,4,FALSE) -> 0 | O40: - | P40: =VLOOKUP('DATA OP'!B17,'DATA OP'!B6:G28,4,FALSE) -> 0 | Q40: - | R40: =VLOOKUP('DATA OP'!B19,'DATA OP'!B6:G28,4,FALSE) -> 0 | S40: )
B41: 2012-13 | C41: =CONCATENATE(C39,D39,E39,F39,G39,H39,I39,J39,K39,L39,M39,N39,O39,P39,Q39,R39,S39,T39,U39,V39,W39,X39,Y39,Z39,AA39,AB39,AC39) -> (16906-826-27-0-0-0-0-0)-(15503-0-0-0) | I41: = | J41: =SUM('DATA OP'!E5-'DATA OP'!E7-'DATA OP'!E9-'DATA OP'!E11-'DATA OP'!E13-'DATA OP'!E15-'DATA OP'!E17-'DATA OP'!E19-'DATA OP'!E21-'DATA OP'!E23-'DATA OP'!E25-'DATA OP'!E27) -> 550 | K41: = | L41: =E9 -> 0.03426150875
C42: =CONCATENATE(D40,E40,F40,G40,H40,I40,J40,K40,L40,M40,N40,O40,P40,Q40,R40) -> 16906-826-27-0-0-0-0-0 | J42: =SUM('DATA OP'!E5-'DATA OP'!E7-'DATA OP'!E9-'DATA OP'!E11-'DATA OP'!E13-'DATA OP'!E15-'DATA OP'!E17-'DATA OP'!E19) -> 16053
C45: ( | D45: =VLOOKUP('DATA OP'!B5,'DATA OP'!B5:G27,6,FALSE) -> 14707 | E45: - | F45: =VLOOKUP('DATA OP'!B7,'DATA OP'!B5:G27,6,FALSE) -> 1240 | G45: - | H45: =VLOOKUP('DATA OP'!B9,'DATA OP'!B5:G27,6,FALSE) -> 0 | I45: - | J45: =VLOOKUP('DATA OP'!B11,'DATA OP'!B5:G27,6,FALSE) -> 0 | K45: - | L45: =VLOOKUP('DATA OP'!B13,'DATA OP'!B5:G27,6,FALSE) -> 0 | M45: - | N45: =VLOOKUP('DATA OP'!B15,'DATA OP'!B5:G27,6,FALSE) -> 0 | O45: - | P45: =VLOOKUP('DATA OP'!B17,'DATA OP'!B5:G27,6,FALSE) -> 0 | Q45: - | R45: =VLOOKUP('DATA OP'!B19,'DATA OP'!B5:G27,6,FALSE) -> 0 | S45: ) | T45: - | U45: ( | V45: =VLOOKUP('DATA OP'!B21,'DATA OP'!B5:G27,6,FALSE) -> 15059 | W45: - | X45: =VLOOKUP('DATA OP'!B23,'DATA OP'!B5:G27,6,FALSE) -> 189 | Y45: - | Z45: =VLOOKUP('DATA OP'!B25,'DATA OP'!B5:G27,6,FALSE) -> 0 | AA45: - | AB45: =VLOOKUP('DATA OP'!B27,'DATA OP'!B5:G27,6,FALSE) -> 0 | AC45: )
C46: ÷ SUM( | D46: =VLOOKUP('DATA OP'!B5,'DATA OP'!B5:G28,6,FALSE) -> 14707 | E46: - | F46: =VLOOKUP('DATA OP'!B7,'DATA OP'!B6:G28,6,FALSE) -> 1240 | G46: - | H46: =VLOOKUP('DATA OP'!B9,'DATA OP'!B6:G28,6,FALSE) -> 0 | I46: - | J46: =VLOOKUP('DATA OP'!B11,'DATA OP'!B6:G28,6,FALSE) -> 0 | K46: - | L46: =VLOOKUP('DATA OP'!B13,'DATA OP'!B6:G28,6,FALSE) -> 0 | M46: - | N46: =VLOOKUP('DATA OP'!B15,'DATA OP'!B6:G28,6,FALSE) -> 0 | O46: - | P46: =VLOOKUP('DATA OP'!B17,'DATA OP'!B6:G28,6,FALSE) -> 0 | Q46: - | R46: =VLOOKUP('DATA OP'!B19,'DATA OP'!B6:G28,6,FALSE) -> 0 | S46: )
B47: 2013-14 | C47: =CONCATENATE(C45,D45,E45,F45,G45,H45,I45,J45,K45,L45,M45,N45,O45,P45,Q45,R45,S45,T45,U45,V45,W45,X45,Y45,Z45,AA45,AB45,AC45) -> (14707-1240-0-0-0-0-0-0)-(15059-189-0-0) | I47: = | J47: =SUM('DATA OP'!G5-'DATA OP'!G7-'DATA OP'!G9-'DATA OP'!G11-'DATA OP'!G13-'DATA OP'!G15-'DATA OP'!G17-'DATA OP'!G19-'DATA OP'!G21-'DATA OP'!G23-'DATA OP'!G25-'DATA OP'!G27) -> -1781 | K47: = | L47: =F9 -> -0.1322492018
C48: =CONCATENATE(D46,E46,F46,G46,H46,I46,J46,K46,L46,M46,N46,O46,P46,Q46,R46) -> 14707-1240-0-0-0-0-0-0 | J48: =SUM('DATA OP'!G5-'DATA OP'!G7-'DATA OP'!G9-'DATA OP'!G11-'DATA OP'!G13-'DATA OP'!G15-'DATA OP'!G17-'DATA OP'!G19) -> 13467
B51: Note: Both numerator and denominator in this calculation excludes fair value adjustments, reversal of revaluation decrements, net gain/losses on sale of assets and net share/loss of interests in joint ventures

Sheet CALC OSR
B2: GENERAL FUND - OWN SOURCE REVENUE RESULT
B3: =INSTRUCTIONS!D5 -> The Council of the Shire of Wakool
B5: BENCHMARK AND RESULT
B6: Benchmark:- | D6: Greater than 60% average over 3 years
D8: 2011-12 | E8: 2012-13 | F8: 2013-14 | G8: Average over 3 years
B9: Result | D9: =IF(ISERROR(SUM('DATA OSR'!C5-'DATA OSR'!C7-'DATA OSR'!C9-'DATA OSR'!C11-'DATA OSR'!C13-'DATA OSR'!C15-'DATA OSR'!C17-'DATA OSR'!C19-'DATA OSR'!C21)/SUM('DATA OSR'!C5-'DATA OSR'!C11-'DATA OSR'!C13-'DATA OSR'!C15-'DATA OSR'!C17-'DATA OSR'!C19-'DATA OSR'!C21)),"",SUM('DATA OSR'!C5-'DATA OSR'!C7-'DATA OSR'!C9-'DATA OSR'!C11-'DATA OSR'!C13-'DATA OSR'!C15-'DATA OSR'!C17-'DATA OSR'!C19-'DATA OSR'!C21)/SUM('DATA OSR'!C5-'DATA OSR'!C11-'DATA OSR'!C13-'DATA OSR'!C15-'DATA OSR'!C17-'DATA OSR'!C19-'DATA OSR'!C21)) -> 0.6480242785 | E9: =IF(ISERROR(SUM('DATA OSR'!E5-'DATA OSR'!E7-'DATA OSR'!E9-'DATA OSR'!E11-'DATA OSR'!E13-'DATA OSR'!E15-'DATA OSR'!E17-'DATA OSR'!E19-'DATA OSR'!E21)/SUM('DATA OSR'!E5-'DATA OSR'!E11-'DATA OSR'!E13-'DATA OSR'!E15-'DATA OSR'!E17-'DATA OSR'!E19-'DATA OSR'!E21)),"",SUM('DATA OSR'!E5-'DATA OSR'!E7-'DATA OSR'!E9-'DATA OSR'!E11-'DATA OSR'!E13-'DATA OSR'!E15-'DATA OSR'!E17-'DATA OSR'!E19-'DATA OSR'!E21)/SUM('DATA OSR'!E5-'DATA OSR'!E11-'DATA OSR'!E13-'DATA OSR'!E15-'DATA OSR'!E17-'DATA OSR'!E19-'DATA OSR'!E21)) -> 0.6016944132 | F9: =IF(ISERR(SUM('DATA OSR'!G5-'DATA OSR'!G7-'DATA OSR'!G9-'DATA OSR'!G11-'DATA OSR'!G13-'DATA OSR'!G15-'DATA OSR'!G17-'DATA OSR'!G19-'DATA OSR'!G21)/SUM('DATA OSR'!G5-'DATA OSR'!G11-'DATA OSR'!G13-'DATA OSR'!G15-'DATA OSR'!G17-'DATA OSR'!G19-'DATA OSR'!G21)),"",SUM('DATA OSR'!G5-'DATA OSR'!G7-'DATA OSR'!G9-'DATA OSR'!G11-'DATA OSR'!G13-'DATA OSR'!G15-'DATA OSR'!G17-'DATA OSR'!G19-'DATA OSR'!G21)/SUM('DATA OSR'!G5-'DATA OSR'!G11-'DATA OSR'!G13-'DATA OSR'!G15-'DATA OSR'!G17-'DATA OSR'!G19-'DATA OSR'!G21)) -> 0.5982865302 | G9: =IF(ISERR(AVERAGE(SUM(H30,H35,H40)/SUM(H31,H36,H41))),"",AVERAGE(SUM(H30,H35,H40)/SUM(H31,H36,H41))) -> 0.6163160982
B10: Benchmark | D10: 0.6 | E10: 0.6 | F10: 0.6 | G10: 0.6
J14: MEETS THE FFTF BENCHMARK
J16: =IF(G9>60%,"YES","NO") -> YES
B23: This is how we calculated the council's result…..
B24: (Figures are carried over from the data sheet and are in $000)
B25: Total continuing operating revenue less all grants and contributions
B26: Total continuing operating revenue inclusive of capital grants and contributions
B28: 2011/12 | C28: =SUM ( | D28: =VLOOKUP('DATA OSR'!B5,'DATA OSR'!$B$5:$G$21,2,FALSE) -> 16146 | E28: - | F28: =VLOOKUP('DATA OSR'!B7,'DATA OSR'!$B$5:$G$21,2,FALSE) -> 2630 | G28: - | H28: =VLOOKUP('DATA OSR'!B9,'DATA OSR'!$B$5:$G$21,2,FALSE) -> 3053 | I28: - | J28: =VLOOKUP('DATA OSR'!B11,'DATA OSR'!$B$5:$G$21,2,FALSE) -> 0 | K28: - | L28: =VLOOKUP('DATA OSR'!B13,'DATA OSR'!$B$5:$G$21,2,FALSE) -> 0 | M28: - | N28: =VLOOKUP('DATA OSR'!B15,'DATA OSR'!$B$5:$G$21,2,FALSE) -> 0 | O28: - | P28: =VLOOKUP('DATA OSR'!B17,'DATA OSR'!$B$5:$G$21,2,FALSE) -> 0 | Q28: - | R28: =VLOOKUP('DATA OSR'!B19,'DATA OSR'!$B$5:$G$21,2,FALSE) -> 0 | S28: - | T28: =VLOOKUP('DATA OSR'!B21,'DATA OSR'!$B$5:$G$21,2,FALSE) -> 0 | U28: )
C29: ÷ SUM( | D29: =VLOOKUP('DATA OSR'!B5,'DATA OSR'!$B$5:$G$21,2,FALSE) -> 16146 | E29: - | F29: =VLOOKUP('DATA OSR'!B11,'DATA OSR'!$B$5:$G$21,2,FALSE) -> 0 | G29: - | H29: =VLOOKUP('DATA OSR'!B13,'DATA OSR'!$B$5:$G$21,2,FALSE) -> 0 | I29: - | J29: =VLOOKUP('DATA OSR'!B15,'DATA OSR'!$B$5:$G$21,2,FALSE) -> 0 | K29: - | L29: =VLOOKUP('DATA OSR'!B17,'DATA OSR'!$B$5:$G$21,2,FALSE) -> 0 | M29: - | N29: =VLOOKUP('DATA OSR'!B19,'DATA OSR'!$B$5:$G$21,2,FALSE) -> 0 | O29: - | P29: =VLOOKUP('DATA OSR'!B21,'DATA OSR'!$B$5:$G$21,2,FALSE) -> 0 | Q29: )
B30: 2011-12 | C30: =CONCATENATE(D28,E28,F28,G28,H28,I28,J28,K28,L28,M28,N28,O28,P28,Q28,R28,S28,T28) -> 16146-2630-3053-0-0-0-0-0-0 | G30: = | H30: =SUM('DATA OSR'!C5-'DATA OSR'!C7-'DATA OSR'!C9-'DATA OSR'!C11-'DATA OSR'!C13-'DATA OSR'!C15-'DATA OSR'!C17-'DATA OSR'!C19-'DATA OSR'!C21) -> 10463 | I30: = | J30: =D9 -> 0.6480242785
C31: =CONCATENATE(D29,,E29,F29,G29,H29,I29,J29,K29,L29,M29,N29,O29,P29) -> 16146-0-0-0-0-0-0 | H31: =SUM('DATA OSR'!C5-'DATA OSR'!C11-'DATA OSR'!C13-'DATA OSR'!C15-'DATA OSR'!C17-'DATA OSR'!C19-'DATA OSR'!C21) -> 16146
B32: 2012/13 | C32: =SUM ( | D32: =VLOOKUP('DATA OSR'!B5,'DATA OSR'!$B$5:$G$27,4,FALSE) -> 16906 | E32: - | F32: =VLOOKUP('DATA OSR'!B7,'DATA OSR'!$B$5:$G$27,4,FALSE) -> 5897 | G32: - | H32: =VLOOKUP('DATA OSR'!B9,'DATA OSR'!$B$5:$G$27,4,FALSE) -> 826 | I32: - | J32: =VLOOKUP('DATA OSR'!B11,'DATA OSR'!$B$5:$G$27,4,FALSE) -> 27 | K32: - | L32: =VLOOKUP('DATA OSR'!B13,'DATA OSR'!$B$5:$G$27,4,FALSE) -> 0 | M32: - | N32: =VLOOKUP('DATA OSR'!B15,'DATA OSR'!$B$5:$G$27,4,FALSE) -> 0 | O32: - | P32: =VLOOKUP('DATA OSR'!B17,'DATA OSR'!$B$5:$G$27,4,FALSE) -> 0 | Q32: - | R32: =VLOOKUP('DATA OSR'!B19,'DATA OSR'!$B$5:$G$27,4,FALSE) -> 0 | S32: - | T32: =VLOOKUP('DATA OSR'!B21,'DATA OSR'!$B$5:$G$27,4,FALSE) -> 0 | U32: )
C33: ÷ SUM( | D33: =VLOOKUP('DATA OSR'!B5,'DATA OSR'!$B$5:$G$27,4,FALSE) -> 16906 | E33: - | F33: =VLOOKUP('DATA OSR'!B11,'DATA OSR'!$B$5:$G$27,4,FALSE) -> 27 | G33: - | H33: =VLOOKUP('DATA OSR'!B13,'DATA OSR'!$B$5:$G$27,4,FALSE) -> 0 | I33: - | J33: =VLOOKUP('DATA OSR'!B15,'DATA OSR'!$B$5:$G$27,4,FALSE) -> 0 | K33: - | L33: =VLOOKUP('DATA OSR'!B17,'DATA OSR'!$B$5:$G$27,4,FALSE) -> 0 | M33: - | N33: =VLOOKUP('DATA OSR'!B19,'DATA OSR'!$B$5:$G$27,4,FALSE) -> 0 | O33: - | P33: =VLOOKUP('DATA OSR'!B21,'DATA OSR'!$B$5:$G$27,4,FALSE) -> 0 | Q33: )
B35: 2012-13 | C35: =CONCATENATE(D32,E32,F32,G32,H32,I32,J32,K32,L32,M32,N32,O32,P32,Q32,R32,S32,T32) -> 16906-5897-826-27-0-0-0-0-0 | G35: = | H35: =SUM('DATA OSR'!E5-'DATA OSR'!E7-'DATA OSR'!E9-'DATA OSR'!E11-'DATA OSR'!E13-'DATA OSR'!E15-'DATA OSR'!E17-'DATA OSR'!E19-'DATA OSR'!E21) -> 10156 | I35: = | J35: =E9 -> 0.6016944132
C36: =CONCATENATE(D33,E33,F33,G33,H33,I33,J33,K33,L33,M33,N33,O33,P33) -> 16906-27-0-0-0-0-0 | H36: =SUM('DATA OSR'!E5-'DATA OSR'!E11-'DATA OSR'!E13-'DATA OSR'!E15-'DATA OSR'!E17-'DATA OSR'!E19-'DATA OSR'!E21) -> 16879
B37: 2013/14 | C37: =SUM ( | D37: =VLOOKUP('DATA OSR'!B5,'DATA OSR'!$B$5:$G$21,6,FALSE) -> 14707 | E37: - | F37: =VLOOKUP('DATA OSR'!B7,'DATA OSR'!$B$5:$G$21,6,FALSE) -> 4668 | G37: - | H37: =VLOOKUP('DATA OSR'!B9,'DATA OSR'!$B$5:$G$21,6,FALSE) -> 1240 | I37: - | J37: =VLOOKUP('DATA OSR'!B11,'DATA OSR'!$B$5:$G$21,6,FALSE) -> 0 | K37: - | L37: =VLOOKUP('DATA OSR'!B13,'DATA OSR'!$B$5:$G$21,6,FALSE) -> 0 | M37: - | N37: =VLOOKUP('DATA OSR'!B15,'DATA OSR'!$B$5:$G$21,6,FALSE) -> 0 | O37: - | P37: =VLOOKUP('DATA OSR'!B17,'DATA OSR'!$B$5:$G$21,6,FALSE) -> 0 | Q37: - | R37: =VLOOKUP('DATA OSR'!B19,'DATA OSR'!$B$5:$G$21,6,FALSE) -> 0 | S37: - | T37: =VLOOKUP('DATA OSR'!B21,'DATA OSR'!$B$5:$G$21,6,FALSE) -> 0 | U37: )
C38: ÷ SUM( | D38: =VLOOKUP('DATA OSR'!B5,'DATA OSR'!$B$5:$G$21,6,FALSE) -> 14707 | E38: - | F38: =VLOOKUP('DATA OSR'!B11,'DATA OSR'!$B$5:$G$21,6,FALSE) -> 0 | G38: - | H38: =VLOOKUP('DATA OSR'!B13,'DATA OSR'!$B$5:$G$21,6,FALSE) -> 0 | I38: - | J38: =VLOOKUP('DATA OSR'!B15,'DATA OSR'!$B$5:$G$21,6,FALSE) -> 0 | K38: - | L38: =VLOOKUP('DATA OSR'!B17,'DATA OSR'!$B$5:$G$21,6,FALSE) -> 0 | M38: - | N38: =VLOOKUP('DATA OSR'!B19,'DATA OSR'!$B$5:$G$21,6,FALSE) -> 0 | O38: - | P38: =VLOOKUP('DATA OSR'!B21,'DATA OSR'!$B$5:$G$21,6,FALSE) -> 0 | Q38: )
B40: 2013-14 | C40: =CONCATENATE(D37,E37,F37,G37,H37,I37,J37,K37,L37,M37,N37,O37,P37,Q37,R37,S37,T37) -> 14707-4668-1240-0-0-0-0-0-0 | G40: = | H40: =SUM('DATA OSR'!G5-'DATA OSR'!G7-'DATA OSR'!G9-'DATA OSR'!G11-'DATA OSR'!G13-'DATA OSR'!G15-'DATA OSR'!G17-'DATA OSR'!G19-'DATA OSR'!G21) -> 8799 | I40: = | J40: =F9 -> 0.5982865302
C41: =CONCATENATE(D38,,E38,F38,G38,H38,I38,J38,K38,L38,M38,N38,O38,P38) -> 14707-0-0-0-0-0-0 | H41: =SUM('DATA OSR'!G5-'DATA OSR'!G11-'DATA OSR'!G13-'DATA OSR'!G15-'DATA OSR'!G17-'DATA OSR'!G19-'DATA OSR'!G21) -> 14707
B43: Note: Both numerator and denominator in this calculation excludes fair value adjustments, reversal of revaluation decrements, net gain on sale of assets and net share of interests in joint ventures

Sheet CALC BIAR
B2: GENERAL FUND - BUILDING AND INFRASTRUCTURE ASSET RENEWAL RESULT
B3: =INSTRUCTIONS!D5 -> The Council of the Shire of Wakool
B4: BENCHMARK AND RESULT
B5: Benchmark:- | C5: Greater than 100% average over 3 years
C7: 2011-12 | D7: 2012-13 | E7: 2013-14 | F7: Average over 3 years
B8: Result | C8: =IF(ISERR('DATA BIAR'!C5/'DATA BIAR'!C7),"",'DATA BIAR'!C5/'DATA BIAR'!C7) -> 0.580245023 | D8: =IF(ISERR('DATA BIAR'!E5/'DATA BIAR'!E7),"",'DATA BIAR'!E5/'DATA BIAR'!E7) -> 0.8458235753 | E8: =IF(ISERR('DATA BIAR'!G5/'DATA BIAR'!G7),"",'DATA BIAR'!G5/'DATA BIAR'!G7) -> 1.046309696 | F8: =IF(ISERR(AVERAGE(SUM(C32,C35,C38)/SUM(C33,C36,C39))),"",AVERAGE(SUM(C32,C35,C38)/SUM(C33,C36,C39))) -> 0.7994663756
B9: Benchmark | C9: 1 | D9: 1 | E9: 1 | F9: 1
I15: MEETS THE FFTF BENCHMARK
I17: =IF(F8>100%,"YES","NO") -> NO
B27: This is how we calculated the council's result…..
B28: (Figures are carried over from the data sheet and are in $000)
B29: Asset renewals (building and infrastructure)
B30: Depreciation, amortisation and impairment (building and infrastructure)
B32: 2011-12 | C32: =VLOOKUP('DATA BIAR'!B5,'DATA BIAR'!B5:G7,2,FALSE) -> 3789 | D32: = | E32: =C8 -> 0.580245023
C33: =VLOOKUP('DATA BIAR'!B7,'DATA BIAR'!B5:G8,2,FALSE) -> 6530
B35: 2012-13 | C35: =VLOOKUP('DATA BIAR'!B5,'DATA BIAR'!B5:G8,4,FALSE) -> 4334 | D35: = | E35: =D8 -> 0.8458235753
C36: =VLOOKUP('DATA BIAR'!B7,'DATA BIAR'!B5:G8,4,FALSE) -> 5124
B38: 2013-14 | C38: =VLOOKUP('DATA BIAR'!B5,'DATA BIAR'!B5:G8,6,FALSE) -> 5061 | D38: = | E38: =E8 -> 1.046309696
C39: =VLOOKUP('DATA BIAR'!B7,'DATA BIAR'!B5:G8,6,FALSE) -> 4837

Sheet CALC IB
B2: GENERAL FUND - INFRASTRUCTURE BACKLOG RESULT
B3: =INSTRUCTIONS!D5 -> The Council of the Shire of Wakool
B4: BENCHMARK AND RESULT
B5: Benchmark:- | C5: Less than 2%
C7: 2013-14
B8: Result | C8: =IF(ISERR('DATA IB'!D5/'DATA IB'!D7),"",'DATA IB'!D5/'DATA IB'!D7) -> 0.276505865
B9: Benchmark | C9: 0.02
G16: MEETS THE FFTF BENCHMARK
G18: =IF(C8<2%,"YES","NO") -> NO
B26: This is how we calculated the council's result…..
B27: (Figures are carried over from the data sheet and are in $000)
B28: Estimated cost to bring assets to a satisfactory condition
B29: Total (WDV) of infrastructure, buildings, other structures and depreciable land improvement assets
B31: 2013-14 | C31: =VLOOKUP('DATA IB'!B5,'DATA IB'!B5:D7,3,FALSE) -> 43986 | D31: = | E31: =C8 -> 0.276505865
C32: =VLOOKUP('DATA IB'!B7,'DATA IB'!B5:D7,3,FALSE) -> 159078

Sheet CALC AM
B2: GENERAL FUND - ASSET MAINTENANCE RESULT
B3: =INSTRUCTIONS!D5 -> The Council of the Shire of Wakool
B4: BENCHMARK AND RESULT
B5: Benchmark:- | D5: Greater than 100% average over 3 years
D7: 2011-12 | E7: 2012-13 | F7: 2013-14 | G7: Average over 3 years
B8: Result | D8: =IF(ISERR('DATA AM'!C5/'DATA AM'!C7),"",'DATA AM'!C5/'DATA AM'!C7) -> 0.9078760307 | E8: =IF(ISERR('DATA AM'!E5/'DATA AM'!E7),"",'DATA AM'!E5/'DATA AM'!E7) -> 0.9905829596 | F8: =IF(ISERR('DATA AM'!G5/'DATA AM'!G7),"",'DATA AM'!G5/'DATA AM'!G7) -> 1.052564103 | G8: =IF(ISERR(AVERAGE(SUM(D32,D35,D38)/SUM(D33,D36,D39))),"",AVERAGE(SUM(D32,D35,D38)/SUM(D33,D36,D39))) -> 0.9725485347
B9: Benchmark | D9: 1 | E9: 1 | F9: 1 | G9: 1
J16: MEETS THE FFTF BENCHMARK
J18: =IF(G8>100%,"YES","NO") -> NO
B27: This is how we calculated the council's result…..
B28: (Figures are carried over from the data sheet and are in $000)
B29: Actual asset maintenance
B30: Required asset maintenance
B32: 2011-12 | D32: =VLOOKUP('DATA AM'!B5,'DATA AM'!B5:G7,2,FALSE) -> 3193 | E32: = | F32: =D8 -> 0.9078760307
D33: =VLOOKUP('DATA AM'!B7,'DATA AM'!B5:G7,2,FALSE) -> 3517
B35: 2012-13 | D35: =VLOOKUP('DATA AM'!B5,'DATA AM'!B5:G7,4,FALSE) -> 2209 | E35: = | F35: =E8 -> 0.9905829596
D36: =VLOOKUP('DATA AM'!B7,'DATA AM'!B5:G7,4,FALSE) -> 2230
B38: 2013-14 | D38: =VLOOKUP('DATA AM'!B5,'DATA AM'!B5:G7,6,FALSE) -> 2463 | E38: = | F38: =F8 -> 1.052564103
D39: =VLOOKUP('DATA AM'!B7,'DATA AM'!B5:G7,6,FALSE) -> 2340

Sheet CALC DS
B2: GENERAL FUND - DEBT SERVICE RESULT
B3: =INSTRUCTIONS!D5 -> The Council of the Shire of Wakool
B4: BENCHMARK AND RESULT
B5: Benchmark:- | D5: Greater than 0 and less than or equal to 20% average over 3 years
E7: 2011-12 | F7: 2012-13 | G7: 2013-14 | H7: Average over 3 years
B8: Result | E8: =IF(ISERR(SUM('DATA DS'!C5+'DATA DS'!C7)/SUM('DATA DS'!C9-'DATA DS'!C11-'DATA DS'!C13-'DATA DS'!C15-'DATA DS'!C17-'DATA DS'!C19-'DATA DS'!C21)),"",(SUM('DATA DS'!C5+'DATA DS'!C7)/SUM('DATA DS'!C9-'DATA DS'!C11-'DATA DS'!C13-'DATA DS'!C15-'DATA DS'!C17-'DATA DS'!C19-'DATA DS'!C21))) -> 0.05735889407 | F8: =IF(ISERR(SUM('DATA DS'!E5+'DATA DS'!E7)/SUM('DATA DS'!E9-'DATA DS'!E11-'DATA DS'!E13-'DATA DS'!E15-'DATA DS'!E17-'DATA DS'!E19-'DATA DS'!E21)),"",SUM('DATA DS'!E5+'DATA DS'!E7)/SUM('DATA DS'!E9-'DATA DS'!E11-'DATA DS'!E13-'DATA DS'!E15-'DATA DS'!E17-'DATA DS'!E19-'DATA DS'!E21)) -> 0.04354326294 | G8: =IF(ISERR(SUM('DATA DS'!E5+'DATA DS'!E7)/SUM('DATA DS'!E9-'DATA DS'!E11-'DATA DS'!E13-'DATA DS'!E15-'DATA DS'!E17-'DATA DS'!E19-'DATA DS'!E21)),"",SUM('DATA DS'!G5+'DATA DS'!G7)/SUM('DATA DS'!G9-'DATA DS'!G11-'DATA DS'!G13-'DATA DS'!G15-'DATA DS'!G17-'DATA DS'!G19-'DATA DS'!G21)) -> 0.07061706393 | H8: =IF(ISERR(AVERAGE(SUM(H33,H38,H43)/SUM(H34,H39,H44))),"",AVERAGE(SUM(H33,H38,H43)/SUM(H34,H39,H44))) -> 0.05634430808
B9: Benchmark 1 > | E9: 0 | F9: 0 | G9: 0 | H9: 0
B10: Benchmark 2 < | E10: 0.2 | F10: 0.2 | G10: 0.2 | H10: 0.2
K13: MEETS THE FFTF BENCHMARK
K16: =IF(H8>0%,IF(H8<=20%,"YES","NO"),"NO") -> YES
B26: This is how we calculated the council's result…..
B27: (Figures are carried over from the data sheet and are in $000)
B28: Cost of debt service (interest expense & principal repayments)
B29: Total continuing operating revenue (exc. capital grants and contributions)
B31: 2011/12 | D31: =SUM ( | E31: =VLOOKUP('DATA DS'!B5,'DATA DS'!$B$5:$G$21,2,FALSE) -> 545 | F31: + | G31: =VLOOKUP('DATA DS'!B7,'DATA DS'!$B$5:$G$21,2,FALSE) -> 206 | H31: )
D32: ÷ SUM( | E32: =VLOOKUP('DATA DS'!B9,'DATA DS'!$B$5:$G$21,2,FALSE) -> 16146 | F32: - | G32: =VLOOKUP('DATA DS'!B11,'DATA DS'!$B$5:$G$21,2,FALSE) -> 3053 | H32: - | I32: =VLOOKUP('DATA DS'!B13,'DATA DS'!$B$5:$G$21,2,FALSE) -> 0 | K32: - | L32: =VLOOKUP('DATA DS'!B15,'DATA DS'!$B$5:$G$21,2,FALSE) -> 0 | M32: - | N32: =VLOOKUP('DATA DS'!B17,'DATA DS'!$B$5:$G$21,2,FALSE) -> 0 | O32: - | P32: =VLOOKUP('DATA DS'!B19,'DATA DS'!$B$5:$G$21,2,FALSE) -> 0 | Q32: - | R32: =VLOOKUP('DATA DS'!B21,'DATA DS'!$B$5:$G$21,2,FALSE) -> 0 | S32: )
B33: 2011-12 | C33: =CONCATENATE(E31,F31,G31) -> 545+206 | G33: = | H33: =SUM('DATA DS'!C5+'DATA DS'!C7) -> 751 | I33: = | J33: =E8 -> 0.05735889407
D34: =CONCATENATE(E32,F32,G32,H32,I32,K32,L32,M32,N32,O32,P32,Q32,R32) -> 16146-3053-0-0-0-0-0 | H34: =SUM('DATA DS'!C9-'DATA DS'!C11-'DATA DS'!C13-'DATA DS'!C15-'DATA DS'!C17-'DATA DS'!C19-'DATA DS'!C21) -> 13093
B36: 2012/13 | D36: =SUM ( | E36: =VLOOKUP('DATA DS'!B5,'DATA DS'!$B$5:$G$21,4,FALSE) -> 536 | F36: + | G36: =VLOOKUP('DATA DS'!B7,'DATA DS'!$B$5:$G$21,4,FALSE) -> 163 | H36: )
D37: ÷ SUM( | E37: =VLOOKUP('DATA DS'!B9,'DATA DS'!$B$5:$G$21,4,FALSE) -> 16906 | F37: - | G37: =VLOOKUP('DATA DS'!B11,'DATA DS'!$B$5:$G$21,4,FALSE) -> 826 | H37: - | I37: =VLOOKUP('DATA DS'!B13,'DATA DS'!$B$5:$G$21,4,FALSE) -> 27 | K37: - | L37: =VLOOKUP('DATA DS'!B15,'DATA DS'!$B$5:$G$21,4,FALSE) -> 0 | M37: - | N37: =VLOOKUP('DATA DS'!B17,'DATA DS'!$B$5:$G$21,4,FALSE) -> 0 | O37: - | P37: =VLOOKUP('DATA DS'!B19,'DATA DS'!$B$5:$G$21,4,FALSE) -> 0 | Q37: - | R37: =VLOOKUP('DATA DS'!B21,'DATA DS'!$B$5:$G$21,4,FALSE) -> 0 | S37: )
B38: 2012-13 | C38: =CONCATENATE(E36,F36,G36) -> 536+163 | G38: = | H38: =SUM('DATA DS'!E5+'DATA DS'!E7) -> 699 | I38: = | J38: =F8 -> 0.04354326294
D39: =CONCATENATE(E37,F37,G37,H37,I37,K37,L37,M37,N37,O37,P37,Q37,R37) -> 16906-826-27-0-0-0-0 | H39: =SUM('DATA DS'!E9-'DATA DS'!E11-'DATA DS'!E13-'DATA DS'!E15-'DATA DS'!E17-'DATA DS'!E19-'DATA DS'!E21) -> 16053
B41: 2013/14 | D41: =SUM ( | E41: =VLOOKUP('DATA DS'!B5,'DATA DS'!$B$5:$G$21,6,FALSE) -> 711 | F41: + | G41: =VLOOKUP('DATA DS'!B7,'DATA DS'!$B$5:$G$21,6,FALSE) -> 240 | H41: )
D42: ÷ SUM( | E42: =VLOOKUP('DATA DS'!B9,'DATA DS'!$B$5:$G$21,6,FALSE) -> 14707 | F42: - | G42: =VLOOKUP('DATA DS'!B11,'DATA DS'!$B$5:$G$21,6,FALSE) -> 1240 | H42: - | I42: =VLOOKUP('DATA DS'!B13,'DATA DS'!$B$5:$G$21,6,FALSE) -> 0 | K42: - | L42: =VLOOKUP('DATA DS'!B15,'DATA DS'!$B$5:$G$21,6,FALSE) -> 0 | M42: - | N42: =VLOOKUP('DATA DS'!B17,'DATA DS'!$B$5:$G$21,6,FALSE) -> 0 | O42: - | P42: =VLOOKUP('DATA DS'!B19,'DATA DS'!$B$5:$G$21,6,FALSE) -> 0 | Q42: - | R42: =VLOOKUP('DATA DS'!B21,'DATA DS'!$B$5:$G$21,6,FALSE) -> 0 | S42: )
B43: 2013-14 | C43: =CONCATENATE(E41,F41,G41) -> 711+240 | G43: = | H43: =SUM('DATA DS'!G5+'DATA DS'!G7) -> 951 | I43: = | J43: =G8 -> 0.07061706393
D44: =CONCATENATE(E42,F42,G42,H42,I42,K42,L42,M42,N42,O42,P42,Q42,R42) -> 14707-1240-0-0-0-0-0 | H44: =SUM('DATA DS'!G9-'DATA DS'!G11-'DATA DS'!G13-'DATA DS'!G15-'DATA DS'!G17-'DATA DS'!G19-'DATA DS'!G21) -> 13467
B46: Note: The denominator in this calculation excludes fair value adjustments, reversal of revaluation decrements, net gain on sale of assets and net share of interests in joint ventures

Sheet CALC ROEPC
B2: GENERAL FUND - REAL OPERATING EXPENDITURE PER CAPITA RESULT
B3: =INSTRUCTIONS!D5 -> The Council of the Shire of Wakool
B4: BENCHMARK AND RESULT
B5: Benchmark:- | C5: A decrease in Real Operating Expenditure per capita over time
C7: 2009-10 | D7: 2010-11 | E7: 2011-12 | F7: 2012-13 | G7: 2013-14
B8: Result | C8: =IF(ISERROR(SUM('DATA ROEPC'!C7-'DATA ROEPC'!C9-'DATA ROEPC'!C11-'DATA ROEPC'!C13)*(1-E30)/'DATA ROEPC'!C5),"",SUM('DATA ROEPC'!C7-'DATA ROEPC'!C9-'DATA ROEPC'!C11-'DATA ROEPC'!C13)*(1-E30)/'DATA ROEPC'!C5) -> 3.000158821 | D8: =IF(ISERROR(SUM('DATA ROEPC'!E7-'DATA ROEPC'!E9-'DATA ROEPC'!E11-'DATA ROEPC'!E13)*(1-E30)*(1-F30)/'DATA ROEPC'!E5),"",SUM('DATA ROEPC'!E7-'DATA ROEPC'!E9-'DATA ROEPC'!E11-'DATA ROEPC'!E13)*(1-E30)*(1-F30)/'DATA ROEPC'!E5) -> 3.505056793 | E8: =IF(ISERROR(SUM('DATA ROEPC'!G7-'DATA ROEPC'!G9-'DATA ROEPC'!G11-'DATA ROEPC'!G13)*(1-E30)*(1-F30)*(1-H30)/'DATA ROEPC'!G5),"",SUM('DATA ROEPC'!G7-'DATA ROEPC'!G9-'DATA ROEPC'!G11-'DATA ROEPC'!G13)*(1-E30)*(1-F30)*(1-H30)/'DATA ROEPC'!G5) -> 3.421807026 | F8: =(IF(ISERROR(SUM('DATA ROEPC'!I7-'DATA ROEPC'!I9-'DATA ROEPC'!I11-'DATA ROEPC'!I13)*(1-E30)*(1-F30)*(1-H30)*(1-I30)/'DATA ROEPC'!I5),"",SUM('DATA ROEPC'!I7-'DATA ROEPC'!I9-'DATA ROEPC'!I11-'DATA ROEPC'!I13)*(1-E30)*(1-F30)*(1-H30)*(1-I30)/'DATA ROEPC'!I5)) -> 3.434385309 | G8: =IF(ISERROR(SUM('DATA ROEPC'!I7-'DATA ROEPC'!I9-'DATA ROEPC'!I11-'DATA ROEPC'!I13)*(1-E30)*(1-F30)*(1-H30)*(1-I30)*(1-J30)/'DATA ROEPC'!I5),"",SUM('DATA ROEPC'!I7-'DATA ROEPC'!I9-'DATA ROEPC'!I11-'DATA ROEPC'!I13)*(1-E30)*(1-F30)*(1-H30)*(1-I30)*(1-J30)/'DATA ROEPC'!I5) -> 3.307313053
K13: MEETS THE FFTF BENCHMARK
K15: =IF(ISERROR(IF(LINEST(C8:G8)>0,"No","Yes")),"",IF(LINEST(C8:G8)>0,"No","Yes")) -> No
B26: This is how we calculated the council's result…..
B27: (Figures are carried over from the data sheet and are in $000)
B29: Expenditure deflated by: | D29: CPI:- | E29: 2009-10 | F29: 2010-11 | G29: LGCI:- | H29: 2011-12 | I29: 2012-13 | J29: 2013-14
E30: 0.023 | F30: 0.03 | H30: 0.03 | I30: 0.034 | J30: 0.037
B33: 2009/11 | D33: =SUM( | E33: =VLOOKUP('DATA ROEPC'!B7,'DATA ROEPC'!$B$5:$K$13,2,FALSE) -> 20360 | F33: - | G33: =VLOOKUP('DATA ROEPC'!B9,'DATA ROEPC'!$B$5:$K$13,2,FALSE) -> 7541 | H33: - | I33: =VLOOKUP('DATA ROEPC'!B11,'DATA ROEPC'!$B$5:$K$13,2,FALSE) -> 0 | J33: - | K33: =VLOOKUP('DATA ROEPC'!B13,'DATA ROEPC'!$B$5:$K$13,2,FALSE) -> 0 | L33: x | M33: (1-.023)
D34: ÷ | E34: =VLOOKUP('DATA ROEPC'!B5,'DATA ROEPC'!B5:K13,2,FALSE) -> 4174.5
B35: 2009-10 | D35: =CONCATENATE(E33,F33,G33,H33,I33,J33,K33,L33,M33) -> 20360-7541-0-0x(1-.023) | F35: = | G35: =SUM('DATA ROEPC'!C7-'DATA ROEPC'!C9-'DATA ROEPC'!C11-'DATA ROEPC'!C13)*(1-E30) -> 12524.163 | H35: = | I35: =C8 -> 3.000158821
D36: =CONCATENATE(E34) -> 4174.5 | G36: =D36 -> 4174.5
B37: 2010/11 | D37: =SUM( | E37: =VLOOKUP('DATA ROEPC'!B7,'DATA ROEPC'!$B$5:$K$13,4,FALSE) -> 15569 | F37: - | G37: =VLOOKUP('DATA ROEPC'!B9,'DATA ROEPC'!$B$5:$K$13,4,FALSE) -> 381 | H37: - | I37: =VLOOKUP('DATA ROEPC'!B11,'DATA ROEPC'!$B$5:$K$13,4,FALSE) -> 0 | J37: - | K37: =VLOOKUP('DATA ROEPC'!B13,'DATA ROEPC'!$B$5:$K$13,4,FALSE) -> 0 | L37: x(1-.023)x(1-.03)
D38: ÷ | E38: =VLOOKUP('DATA ROEPC'!B5,'DATA ROEPC'!B5:K13,4,FALSE) -> 4106.5
B40: 2010-11 | D40: =CONCATENATE(E37,F37,G37,H37,I37,J37,K37,L37) -> 15569-381-0-0x(1-.023)x(1-.03) | F40: = | G40: =SUM('DATA ROEPC'!E7-'DATA ROEPC'!E9-'DATA ROEPC'!E11-'DATA ROEPC'!E13)*(1-E30)*(1-F30) -> 14393.51572 | H40: = | I40: =D8 -> 3.505056793
D41: =E38 -> 4106.5 | G41: =D41 -> 4106.5
B42: 2011/12 | D42: =SUM( | E42: =VLOOKUP('DATA ROEPC'!B7,'DATA ROEPC'!$B$5:$K$13,6,FALSE) -> 15307 | F42: - | G42: =VLOOKUP('DATA ROEPC'!B9,'DATA ROEPC'!$B$5:$K$13,6,FALSE) -> 211 | H42: - | I42: =VLOOKUP('DATA ROEPC'!B11,'DATA ROEPC'!$B$5:$K$13,6,FALSE) -> 0 | J42: - | K42: =VLOOKUP('DATA ROEPC'!B13,'DATA ROEPC'!$B$5:$K$13,6,FALSE) -> 0 | L42: x(1-.023)x(1-.03)x(1-.03)
D43: ÷ | E43: =VLOOKUP('DATA ROEPC'!B5,'DATA ROEPC'!B5:K14,6,FALSE) -> 4055.5
B45: 2011-12 | D45: =CONCATENATE(E42,F42,G42,H42,I42,J42,K42,L42) -> 15307-211-0-0x(1-.023)x(1-.03)x(1-.03) | F45: = | G45: =SUM('DATA ROEPC'!G7-'DATA ROEPC'!G9-'DATA ROEPC'!G11-'DATA ROEPC'!G13)*(1-E30)*(1-F30)*(1-H30) -> 13877.13839 | H45: = | I45: =E8 -> 3.421807026
D46: =E43 -> 4055.5 | G46: =D46 -> 4055.5
B47: 2012/13 | D47: =SUM( | E47: =VLOOKUP('DATA ROEPC'!B7,'DATA ROEPC'!$B$5:$K$13,8,FALSE) -> 15503 | F47: - | G47: =VLOOKUP('DATA ROEPC'!B9,'DATA ROEPC'!$B$5:$K$13,8,FALSE) -> 0 | H47: - | I47: =VLOOKUP('DATA ROEPC'!B11,'DATA ROEPC'!$B$5:$K$13,8,FALSE) -> 0 | J47: - | K47: =VLOOKUP('DATA ROEPC'!B13,'DATA ROEPC'!$B$5:$K$13,8,FALSE) -> 0 | L47: x(1-.023)x(1-.03)x(1-.03)x(1-.034)
D48: ÷ | E48: =VLOOKUP('DATA ROEPC'!B5,'DATA ROEPC'!B5:K14,8,FALSE) -> 4008.5
B50: 2012-13 | D50: =CONCATENATE(E47,F47,G47,H47,I47,J47,K47,L47) -> 15503-0-0-0x(1-.023)x(1-.03)x(1-.03)x(1-.034) | F50: = | G50: =SUM('DATA ROEPC'!I7-'DATA ROEPC'!I9-'DATA ROEPC'!I11-'DATA ROEPC'!I13)*(1-E30)*(1-F30)*(1-H30)*(1-I30) -> 13766.73351 | H50: = | I50: =F8 -> 3.434385309
D51: =E48 -> 4008.5 | G51: =D51 -> 4008.5
B52: 2013/14 | D52: =SUM( | E52: =VLOOKUP('DATA ROEPC'!B7,'DATA ROEPC'!$B$5:$K$13,10,FALSE) -> 15059 | F52: - | G52: =VLOOKUP('DATA ROEPC'!B9,'DATA ROEPC'!$B$5:$K$13,10,FALSE) -> 189 | H52: - | I52: =VLOOKUP('DATA ROEPC'!B11,'DATA ROEPC'!$B$5:$K$13,10,FALSE) -> 0 | J52: - | K52: =VLOOKUP('DATA ROEPC'!B13,'DATA ROEPC'!$B$5:$K$13,10,FALSE) -> 0 | L52: x(1-.023)x(1-.03)x(1-.03)x(1-.034)x(1-.037)
D53: ÷ | E53: =VLOOKUP('DATA ROEPC'!B5,'DATA ROEPC'!B5:K14,10,FALSE) -> 3979
B55: 2013-14 | D55: =CONCATENATE(E52,F52,G52,H52,I52,J52,K52,L52) -> 15059-189-0-0x(1-.023)x(1-.03)x(1-.03)x(1-.034)x(1-.037) | F55: = | G55: =SUM('DATA ROEPC'!K7-'DATA ROEPC'!K9-'DATA ROEPC'!K11-'DATA ROEPC'!K13)*(1-E30)*(1-F30)*(1-H30)*(1-I30)*(1-J30) -> 12716.05549 | H55: = | I55: =G8 -> 3.307313053
D56: =E53 -> 3979 | G56: =D56 -> 3979
B58: Note: The numerator in this calculation excludes revaluation decrements, net loss from disposal of assets and net loss of interests in joint ventures.

Sheet RESULTS
H4: Criteria Results
C8: =INSTRUCTIONS!D5 -> The Council of the Shire of Wakool
E9: BENCHMARK | L9: RESULT | M9: MEETS FFTF BENCHMARK
E10: Operating Performance Ratio (greater or equal to break-even average over 3 years) | L10: ='CALC OP'!G9 -> -0.08579541454 | M10: =IF(L10>=0,"YES","NO") -> NO | N10: =IF(M10="NO",0,1) -> 0
E11: Own Source Revenue Ratio (greater than 60% average over 3 years) | L11: ='CALC OSR'!G9 -> 0.6163160982 | M11: =IF(L11>60%,"YES","NO") -> YES | N11: =IF(M11="NO",0,1) -> 1
E12: Building and Infrastructure Asset Renewal Ratio (greater than 100% average over 3 years) | L12: ='CALC BIAR'!F8 -> 0.7994663756 | M12: =IF(L12>100%,"YES","NO") -> NO | N12: 0
E15: Infrastructure Backlog Ratio (less than 2%) | L15: ='CALC IB'!C8 -> 0.276505865 | M15: =IF(L15<2%,"YES","NO") -> NO | N15: 0
E16: Asset Maintenance Ratio (greater than 100% average over 3 years) | L16: ='CALC AM'!G8 -> 0.9725485347 | M16: =IF(L16>100%,"YES","NO") -> NO | N16: 0
E17: Debt Service Ratio (greater than 0 and less than or equal to 20% average over 3 years) | L17: ='CALC DS'!H8 -> 0.05634430808 | M17: =IF(L17<20*AND(L17>0),"YES","NO") -> YES | N17: 1
E20: A decrease in Real Operating Expenditure per capita over time | L20: =IF(ISERROR(IF(LINEST('CALC ROEPC'!C8:G8)>0,"Increasing","Decreasing")),"",IF(LINEST('CALC ROEPC'!C8:G8)>0,"Increasing","Decreasing")) -> Increasing | M20: =IF(ISERROR(IF(LINEST('CALC ROEPC'!C8:G8)>0,"NO","YES")),"",IF(LINEST('CALC ROEPC'!C8:G8)>0,"NO","YES")) -> NO | N20: =IF(M20="NO",0,1) -> 0
E23: OVERALL RESULT | H23: =M26 -> 4
E25: =IF(M26=0,"The Council meets all seven of the Fit for the Future Criteria","The Council does not meet all seven of the Fit for the Future Criteria") -> The Council does not meet all seven of the Fit for the Future Criteria
M26: =COUNTIF(M10:M17,"NO") -> 4

Sheet POPULATION (hidden)
A1: Australian Bureau of Statistics | C1: 2 | D1: 3 | E1: 4 | F1: 5 | G1: 6 | H1: 7 | I1: 8 | J1: 9 | K1: 10 | L1: 11 | M1: 12 | N1: 13 | O1: 14 | P1: 15 | Q1: 16 | R1: 17 | S1: 18 | T1: 19 | U1: 20 | V1: 21 | W1: 22 | X1: 23 | Y1: 24
A2: 3218.0 Regional Population Growth, Australia | G2: Released 3.4.2014
A3: Table 1. Estimated Resident Population, Local Government Areas, New South Wales
D5: 3 | Z5: Change
D6: 2003 | E6: 2004 | F6: average population 2003-04 | G6: 2005 | H6: average population 2004-05 | I6: 2006 | J6: average population 2005-06 | K6: 2007 | L6: average population 2006-07 | M6: 2008 | N6: average population 2007-08 | O6: 2009 | P6: average population 2008-09 | Q6: 2010 | R6: average population 2009-10 | S6: 2011 | T6: average population 2010-11 | U6: 2012r | V6: average population 2011-12 | W6: 2013p | X6: average population 2012-13 | Y6: 2013-14 | Z6: 2012r-2013p | AC6: Area | AD6: Population density 2013
A7: LGA code | B7: Local Government Area | D7: no. | E7: no. | G7: no. | I7: no. | K7: no. | M7: no. | O7: no. | Q7: no. | S7: no. | U7: no. | W7: no. | Y7: 2013 data | Z7: % | AA7: no. | AC7: km2 | AD7: persons/km2
B8: Select your Council | C8: 2 | D8: 3 | E8: 4 | F8: 5 | G8: 6 | H8: 7 | I8: 8 | J8: 9 | K8: 10 | L8: 11 | M8: 12 | N8: 13 | O8: 14 | P8: 15 | Q8: 16 | R8: 17 | S8: 18 | T8: 19 | U8: 20 | V8: 21 | W8: 22 | X8: 23 | Y8: 24
A9: 10050 | B9: Albury City Council | C9: 4 | D9: 46180 | E9: 46505 | F9: 46342.5 | G9: 47004 | H9: 46754.5 | I9: 47566 | J9: 47285 | K9: 48140 | L9: 47853 | M9: 48518 | N9: 48329 | O9: 48814 | P9: 48666 | Q9: 49222 | R9: 49018 | S9: 49451 | T9: 49336.5 | U9: 49709 | V9: 49580 | W9: 50243 | X9: 49976 | Y9: 50243 | Z9: 1.1 | AA9: 534 | AC9: 305.9 | AD9: 164.2
A10: 10110 | B10: Armidale Dumaresq Council | C10: 4 | D10: 24346 | E10: 24171 | F10: 24258.5 | G10: 24115 | H10: 24143 | I10: 24146 | J10: 24130.5 | K10: 24275 | L10: 24210.5 | M10: 24573 | N10: 24424 | O10: 24862 | P10: 24717.5 | Q10: 25046 | R10: 24954 | S10: 25158 | T10: 25102 | U10: 25298 | V10: 25228 | W10: 25343 | X10: 25320.5 | Y10: 25343 | Z10: 0.2 | AA10: 45 | AC10: 4230.8 | AD10: 6
A11: 10150 | B11: Ashfield Council | C11: 2 | D11: 40501 | E11: 40614 | F11: 40557.5 | G11: 40832 | H11: 40723 | I11: 41269 | J11: 41050.5 | K11: 41916 | L11: 41592.5 | M11: 42207 | N11: 42061.5 | O11: 42766 | P11: 42486.5 | Q11: 43038 | R11: 42902 | S11: 43538 | T11: 43288 | U11: 43744 | V11: 43641 | W11: 44175 | X11: 43959.5 | Y11: 44175 | Z11: 1 | AA11: 431 | AC11: 8.3 | AD11: 5334.4
A12: 10200 | B12: Auburn City Council | C12: 3 | D12: 61406 | E12: 63318 | F12: 62362 | G12: 65924 | H12: 64621 | I12: 67819 | J12: 66871.5 | K12: 70232 | L12: 69025.5 | M12: 72630 | N12: 71431 | O12: 74920 | P12: 73775 | Q12: 76640 | R12: 75780 | S12: 77779 | T12: 77209.5 | U12: 80540 | V12: 79159.5 | W12: 83367 | X12: 81953.5 | Y12: 83367 | Z12: 3.5 | AA12: 2827 | AC12: 32.5 | AD12: 2567
A13: 10250 | B13: Ballina Shire Council | C13: 4 | D13: 38870 | E13: 39120 | F13: 38995 | G13: 39305 | H13: 39212.5 | I13: 39537 | J13: 39421 | K13: 39824 | L13: 39680.5 | M13: 40020 | N13: 39922 | O13: 40295 | P13: 40157.5 | Q13: 40571 | R13: 40433 | S13: 40747 | T13: 40659 | U13: 41015 | V13: 40881 | W13: 41335 | X13: 41175 | Y13: 41335 | Z13: 0.8 | AA13: 320 | AC13: 484.7 | AD13: 85.3
A14: 10300 | B14: Balranald Shire Council | C14: 9 | D14: 2661 | E14: 2596 | F14: 2628.5 | G14: 2545 | H14: 2570.5 | I14: 2507 | J14: 2526 | K14: 2473 | L14: 2490 | M14: 2433 | N14: 2453 | O14: 2404 | P14: 2418.5 | Q14: 2381 | R14: 2392.5 | S14: 2353 | T14: 2367 | U14: 2340 | V14: 2346.5 | W14: 2371 | X14: 2355.5 | Y14: 2371 | Z14: 1.3 | AA14: 31 | AC14: 21693.1 | AD14: 0.1
A15: 10350 | B15: Bankstown City Council | C15: 3 | D15: 171975 | E15: 172208 | F15: 172091.5 | G15: 173282 | H15: 172745 | I15: 175789 | J15: 174535.5 | K15: 179352 | L15: 177570.5 | M15: 182679 | N15: 181015.5 | O15: 185770 | P15: 184224.5 | Q15: 188185 | R15: 186977.5 | S15: 190851 | T15: 189518 | U15: 193605 | V15: 192228 | W15: 196974 | X15: 195289.5 | Y15: 196974 | Z15: 1.7 | AA15: 3369 | AC15: 76.8 | AD15: 2564.8
A16: 10470 | B16: Bathurst Regional Council | C16: 4 | D16: 36084 | E16: 36245 | F16: 36164.5 | G16: 36547 | H16: 36396 | I16: 36916 | J16: 36731.5 | K16: 37272 | L16: 37094 | M16: 37904 | N16: 37588 | O16: 38848 | P16: 38376 | Q16: 39484 | R16: 39166 | S16: 39960 | T16: 39722 | U16: 40368 | V16: 40164 | W16: 41051 | X16: 40709.5 | Y16: 41051 | Z16: 1.7 | AA16: 683 | AC16: 3816.4 | AD16: 10.8
A17: 10550 | B17: Bega Valley Shire Council | C17: 4 | D17: 31056 | E17: 31406 | F17: 31231 | G17: 31608 | H17: 31507 | I17: 31829 | J17: 31718.5 | K17: 32183 | L17: 32006 | M17: 32367 | N17: 32275 | O17: 32620 | P17: 32493.5 | Q17: 32962 | R17: 32791 | S17: 33128 | T17: 33045 | U17: 33242 | V17: 33185 | W17: 33313 | X17: 33277.5 | Y17: 33313 | Z17: 0.2 | AA17: 71 | AC17: 6279 | AD17: 5.3
A18: 10600 | B18: Bellingen Shire Council | C18: 11 | D18: 12705 | E18: 12672 | F18: 12688.5 | G18: 12682 | H18: 12677 | I18: 12716 | J18: 12699 | K18: 12773 | L18: 12744.5 | M18: 12787 | N18: 12780 | O18: 12837 | P18: 12812 | Q18: 12891 | R18: 12864 | S18: 12923 | T18: 12907 | U18: 12858 | V18: 12890.5 | W18: 12854 | X18: 12856 | Y18: 12854 | Z18: 0 | AA18: -4 | AC18: 1600.4 | AD18: 8
A19: 10650 | B19: Berrigan Shire Council | C19: 10 | D19: 8035 | E19: 8014 | F19: 8024.5 | G19: 8076 | H19: 8045 | I19: 8160 | J19: 8118 | K19: 8204 | L19: 8182 | M19: 8237 | N19: 8220.5 | O19: 8282 | P19: 8259.5 | Q19: 8291 | R19: 8286.5 | S19: 8297 | T19: 8294 | U19: 8330 | V19: 8313.5 | W19: 8365 | X19: 8347.5 | Y19: 8365 | Z19: 0.4 | AA19: 35 | AC19: 2065.9 | AD19: 4
A20: 10750 | B20: Blacktown City Council | C20: 3 | D20: 268806 | E20: 271434 | F20: 270120 | G20: 275206 | H20: 273320 | I20: 278894 | J20: 277050 | K20: 284925 | L20: 281909.5 | M20: 292002 | N20: 288463.5 | O20: 299450 | P20: 295726 | Q20: 306601 | R20: 303025.5 | S20: 312346 | T20: 309473.5 | U20: 318038 | V20: 315192 | W20: 325185 | X20: 321611.5 | Y20: 325185 | Z20: 2.2 | AA20: 7147 | AC20: 240.1 | AD20: 1354.3
A21: 10800 | B21: Bland Shire Council | C21: 10 | D21: 6453 | E21: 6360 | F21: 6406.5 | G21: 6263 | H21: 6311.5 | I21: 6212 | J21: 6237.5 | K21: 6178 | L21: 6195 | M21: 6113 | N21: 6145.5 | O21: 6101 | P21: 6107 | Q21: 6049 | R21: 6075 | S21: 6021 | T21: 6035 | U21: 6056 | V21: 6038.5 | W21: 6010 | X21: 6033 | Y21: 6010 | Z21: -0.8 | AA21: -46 | AC21: 8557.7 | AD21: 0.7
A22: 10850 | B22: Blayney Shire Council | C22: 10 | D22: 6562 | E22: 6598 | F22: 6580 | G22: 6649 | H22: 6623.5 | I22: 6741 | J22: 6695 | K22: 6821 | L22: 6781 | M22: 6900 | N22: 6860.5 | O22: 7041 | P22: 6970.5 | Q22: 7143 | R22: 7092 | S22: 7217 | T22: 7180 | U22: 7279 | V22: 7248 | W22: 7330 | X22: 7304.5 | Y22: 7330 | Z22: 0.7 | AA22: 51 | AC22: 1524.9 | AD22: 4.8
A23: 10900 | B23: Blue Mountains City Council | C23: 7 | D23: 76651 | E23: 76436 | F23: 76543.5 | G23: 75971 | H23: 76203.5 | I23: 75600 | J23: 75785.5 | K23: 76198 | L23: 75899 | M23: 77102 | N23: 76650 | O23: 77869 | P23: 77485.5 | Q23: 78227 | R23: 78048 | S23: 78553 | T23: 78390 | U23: 78748 | V23: 78650.5 | W23: 79225 | X23: 78986.5 | Y23: 79225 | Z23: 0.6 | AA23: 477 | AC23: 1431.2 | AD23: 55.4
A24: 10950 | B24: Bogan Shire Council | C24: 9 | D24: 3052 | E24: 3027 | F24: 3039.5 | G24: 2964 | H24: 2995.5 | I24: 2939 | J24: 2951.5 | K24: 2972 | L24: 2955.5 | M24: 2992 | N24: 2982 | O24: 2999 | P24: 2995.5 | Q24: 3013 | R24: 3006 | S24: 3009 | T24: 3011 | U24: 3034 | V24: 3021.5 | W24: 3037 | X24: 3035.5 | Y24: 3037 | Z24: 0.1 | AA24: 3 | AC24: 14600.5 | AD24: 0.2
A25: 11000 | B25: Bombala Council | C25: 9 | D25: 2590 | E25: 2576 | F25: 2583 | G25: 2577 | H25: 2576.5 | I25: 2589 | J25: 2583 | K25: 2567 | L25: 2578 | M25: 2534 | N25: 2550.5 | O25: 2516 | P25: 2525 | Q25: 2503 | R25: 2509.5 | S25: 2484 | T25: 2493.5 | U25: 2428 | V25: 2456 | W25: 2401 | X25: 2414.5 | Y25: 2401 | Z25: -1.1 | AA25: -27 | AC25: 3946.6 | AD25: 0.6
A26: 11050 | B26: Boorowa Council | C26: 9 | D26: 2399 | E26: 2396 | F26: 2397.5 | G26: 2379 | H26: 2387.5 | I26: 2350 | J26: 2364.5 | K26: 2355 | L26: 2352.5 | M26: 2366 | N26: 2360.5 | O26: 2413 | P26: 2389.5 | Q26: 2451 | R26: 2432 | S26: 2479 | T26: 2465 | U26: 2529 | V26: 2504 | W26: 2558 | X26: 2543.5 | Y26: 2558 | Z26: 1.1 | AA26: 29 | AC26: 2578 | AD26: 1
A27: 11100 | B27: The Council of the City of Botany Bay | C27: 9 | D27: 37228 | E27: 37081 | F27: 37154.5 | G27: 37215 | H27: 37148 | I27: 37453 | J27: 37334 | K27: 38041 | L27: 37747 | M27: 39018 | N27: 38529.5 | O27: 40026 | P27: 39522 | Q27: 40909 | R27: 40467.5 | S27: 41504 | T27: 41206.5 | U27: 42294 | V27: 41899 | W27: 43292 | X27: 42793 | Y27: 43292 | Z27: 2.4 | AA27: 998 | AC27: 21.7 | AD27: 1996.2
A28: 11150 | B28: Bourke Shire Council | C28: 8 | D28: 3642 | E28: 3494 | F28: 3568 | G28: 3349 | H28: 3421.5 | I28: 3185 | J28: 3267 | K28: 3073 | L28: 3129 | M28: 3046 | N28: 3059.5 | O28: 3013 | P28: 3029.5 | Q28: 3033 | R28: 3023 | S28: 3053 | T28: 3043 | U28: 3029 | V28: 3041 | W28: 2996 | X28: 3012.5 | Y28: 2996 | Z28: -1.1 | AA28: -33 | AC28: 41604.5 | AD28: 0.1
A29: 11200 | B29: Brewarrina Shire Council | C29: 4 | D29: 2078 | E29: 2039 | F29: 2058.5 | G29: 2029 | H29: 2034 | I29: 2004 | J29: 2016.5 | K29: 1961 | L29: 1982.5 | M29: 1944 | N29: 1952.5 | O29: 1900 | P29: 1922 | Q29: 1878 | R29: 1889 | S29: 1874 | T29: 1876 | U29: 1874 | V29: 1874 | W29: 1940 | X29: 1907 | Y29: 1940 | Z29: 3.5 | AA29: 66 | AC29: 19165.2 | AD29: 0.1
A30: 11250 | B30: Broken Hill City Council | C30: 2 | D30: 20403 | E30: 20111 | F30: 20257 | G30: 19915 | H30: 20013 | I30: 19753 | J30: 19834 | K30: 19708 | L30: 19730.5 | M30: 19604 | N30: 19656 | O30: 19421 | P30: 19512.5 | Q30: 19267 | R30: 19344 | S30: 19151 | T30: 19209 | U30: 19123 | V30: 19137 | W30: 19048 | X30: 19085.5 | Y30: 19048 | Z30: -0.4 | AA30: -75 | AC30: 170.3 | AD30: 111.9
A31: 11300 | B31: Burwood Council | C31: 4 | D31: 30980 | E31: 31370 | F31: 31175 | G31: 31696 | H31: 31533 | I31: 32199 | J31: 31947.5 | K31: 32893 | L31: 32546 | M31: 33343 | N31: 33118 | O31: 33708 | P31: 33525.5 | Q31: 33835 | R31: 33771.5 | S31: 34176 | T31: 34005.5 | U31: 34707 | V31: 34441.5 | W31: 35298 | X31: 35002.5 | Y31: 35298 | Z31: 1.7 | AA31: 591 | AC31: 7.1 | AD31: 4951.9
A32: 11350 | B32: Byron Shire Council | C32: 11 | D32: 29952 | E32: 30141 | F32: 30046.5 | G32: 30130 | H32: 30135.5 | I32: 30125 | J32: 30127.5 | K32: 30174 | L32: 30149.5 | M32: 30347 | N32: 30260.5 | O32: 30537 | P32: 30442 | Q32: 30664 | R32: 30600.5 | S32: 30712 | T32: 30688 | U32: 31024 | V32: 30868 | W32: 31612 | X32: 31318 | Y32: 31612 | Z32: 1.9 | AA32: 588 | AC32: 565.8 | AD32: 55.9
A33: 11400 | B33: Cabonne Council | C33: 6 | D33: 12482 | E33: 12506 | F33: 12494 | G33: 12543 | H33: 12524.5 | I33: 12634 | J33: 12588.5 | K33: 12706 | L33: 12670 | M33: 12799 | N33: 12752.5 | O33: 12929 | P33: 12864 | Q33: 13071 | R33: 13000 | S33: 13211 | T33: 13141 | U33: 13476 | V33: 13343.5 | W33: 13695 | X33: 13585.5 | Y33: 13695 | Z33: 1.6 | AA33: 219 | AC33: 6023.9 | AD33: 2.3
A34: 11450 | B34: Camden Council | C34: 7 | D34: 48441 | E34: 48925 | F34: 48683 | G34: 49990 | H34: 49457.5 | I34: 50628 | J34: 50309 | K34: 52178 | L34: 51403 | M34: 53736 | N34: 52957 | O34: 55377 | P34: 54556.5 | Q34: 56846 | R34: 56111.5 | S34: 58439 | T34: 57642.5 | U34: 60661 | V34: 59550 | W34: 63248 | X34: 61954.5 | Y34: 63248 | Z34: 4.3 | AA34: 2587 | AC34: 201.3 | AD34: 314.3
A35: 11500 | B35: Campbelltown City Council | C35: 3 | D35: 148743 | E35: 147587 | F35: 148165 | G35: 147220 | H35: 147403.5 | I35: 146538 | J35: 146879 | K35: 147159 | L35: 146848.5 | M35: 148407 | N35: 147783 | O35: 149986 | P35: 149196.5 | Q35: 150318 | R35: 150152 | S35: 151173 | T35: 150745.5 | U35: 152639 | V35: 151906 | W35: 154538 | X35: 153588.5 | Y35: 154538 | Z35: 1.2 | AA35: 1899 | AC35: 312.1 | AD35: 495.1
A36: 11520 | B36: City of Canada Bay Council | C36: 9 | D36: 64060 | E36: 65350 | F36: 64705 | G36: 66951 | H36: 66150.5 | I36: 68309 | J36: 67630 | K36: 70196 | L36: 69252.5 | M36: 72320 | N36: 71258 | O36: 75332 | P36: 73826 | Q36: 77709 | R36: 76520.5 | S36: 80065 | T36: 78887 | U36: 82271 | V36: 81168 | W36: 84906 | X36: 83588.5 | Y36: 84906 | Z36: 3.2 | AA36: 2635 | AC36: 19.9 | AD36: 4268
A37: 11550 | B37: Canterbury City Council | C37: 9 | D37: 134341 | E37: 133462 | F37: 133901.5 | G37: 133836 | H37: 133649 | I37: 134789 | J37: 134312.5 | K37: 136803 | L37: 135796 | M37: 139725 | N37: 138264 | O37: 142023 | P37: 140874 | Q37: 143933 | R37: 142978 | S37: 145089 | T37: 144511 | U37: 146829 | V37: 145959 | W37: 148853 | X37: 147841 | Y37: 148853 | Z37: 1.4 | AA37: 2024 | AC37: 33.6 | AD37: 4434.9
A38: 11600 | B38: Carrathool Shire Council | C38: 4 | D38: 3143 | E38: 3054 | F38: 3098.5 | G38: 2947 | H38: 3000.5 | I38: 2863 | J38: 2905 | K38: 2827 | L38: 2845 | M38: 2784 | N38: 2805.5 | O38: 2778 | P38: 2781 | Q38: 2732 | R38: 2755 | S38: 2681 | T38: 2706.5 | U38: 2699 | V38: 2690 | W38: 2792 | X38: 2745.5 | Y38: 2792 | Z38: 3.4 | AA38: 93 | AC38: 18932.5 | AD38: 0.1
A39: 11700 | B39: Central Darling Shire Council | C39: 3 | D39: 2218 | E39: 2163 | F39: 2190.5 | G39: 2096 | H39: 2129.5 | I39: 2000 | J39: 2048 | K39: 2003 | L39: 2001.5 | M39: 2003 | N39: 2003 | O39: 2029 | P39: 2016 | Q39: 2045 | R39: 2037 | S39: 2059 | T39: 2052 | U39: 2083 | V39: 2071 | W39: 2070 | X39: 2076.5 | Y39: 2070 | Z39: -0.6 | AA39: -13 | AC39: 53493.8 | AD39: 0
A40: 11720 | B40: Cessnock City Council | C40: 4 | D40: 47181 | E40: 47266 | F40: 47223.5 | G40: 47305 | H40: 47285.5 | I40: 47426 | J40: 47365.5 | K40: 48302 | L40: 47864 | M40: 49303 | N40: 48802.5 | O40: 50218 | P40: 49760.5 | Q40: 51304 | R40: 50761 | S40: 52485 | T40: 51894.5 | U40: 53355 | V40: 52920 | W40: 54313 | X40: 53834 | Y40: 54313 | Z40: 1.8 | AA40: 958 | AC40: 1965.4 | AD40: 27.6
A41: 11730 | B41: Clarence Valley Council | C41: 4 | D41: 48509 | E41: 48631 | F41: 48570 | G41: 48853 | H41: 48742 | I41: 49149 | J41: 49001 | K41: 49524 | L41: 49336.5 | M41: 49818 | N41: 49671 | O41: 50433 | P41: 50125.5 | Q41: 50993 | R41: 50713 | S41: 51287 | T41: 51140 | U41: 51332 | V41: 51309.5 | W41: 51043 | X41: 51187.5 | Y41: 51043 | Z41: -0.6 | AA41: -289 | AC41: 10428.8 | AD41: 4.9
A42: 11750 | B42: Cobar Shire Council | C42: 10 | D42: 5082 | E42: 5037 | F42: 5059.5 | G42: 5028 | H42: 5032.5 | I42: 5044 | J42: 5036 | K42: 5042 | L42: 5043 | M42: 4988 | N42: 5015 | O42: 4954 | P42: 4971 | Q42: 4946 | R42: 4950 | S42: 4883 | T42: 4914.5 | U42: 4902 | V42: 4892.5 | W42: 5024 | X42: 4963 | Y42: 5024 | Z42: 2.5 | AA42: 122 | AC42: 45571 | AD42: 0.1
A43: 11800 | B43: Coffs Harbour City Council | C43: 5 | D43: 64574 | E43: 65448 | F43: 65011 | G43: 65957 | H43: 65702.5 | I43: 66657 | J43: 66307 | K43: 67567 | L43: 67112 | M43: 68574 | N43: 68070.5 | O43: 69358 | P43: 68966 | Q43: 70373 | R43: 69865.5 | S43: 70972 | T43: 70672.5 | U43: 71085 | V43: 71028.5 | W43: 71798 | X43: 71441.5 | Y43: 71798 | Z43: 1 | AA43: 713 | AC43: 1173.7 | AD43: 61.2
A44: 11860 | B44: Conargo Shire Council | C44: 8 | D44: 1769 | E44: 1740 | F44: 1754.5 | G44: 1717 | H44: 1728.5 | I44: 1701 | J44: 1709 | K44: 1687 | L44: 1694 | M44: 1658 | N44: 1672.5 | O44: 1626 | P44: 1642 | Q44: 1607 | R44: 1616.5 | S44: 1585 | T44: 1596 | U44: 1578 | V44: 1581.5 | W44: 1543 | X44: 1560.5 | Y44: 1543 | Z44: -2.2 | AA44: -35 | AC44: 8737.9 | AD44: 0.2
A45: 12000 | B45: Coolamon Shire Council | C45: 9 | D45: 4072 | E45: 4066 | F45: 4069 | G45: 4072 | H45: 4069 | I45: 4097 | J45: 4084.5 | K45: 4116 | L45: 4106.5 | M45: 4145 | N45: 4130.5 | O45: 4187 | P45: 4166 | Q45: 4216 | R45: 4201.5 | S45: 4236 | T45: 4226 | U45: 4287 | V45: 4261.5 | W45: 4276 | X45: 4281.5 | Y45: 4276 | Z45: -0.3 | AA45: -11 | AC45: 2430.9 | AD45: 1.8
A46: 12050 | B46: Cooma-Monaro Shire Council | C46: 11 | D46: 9784 | E46: 9838 | F46: 9811 | G46: 9911 | H46: 9874.5 | I46: 9980 | J46: 9945.5 | K46: 9991 | L46: 9985.5 | M46: 10003 | N46: 9997 | O46: 10051 | P46: 10027 | Q46: 10085 | R46: 10068 | S46: 10131 | T46: 10108 | U46: 10173 | V46: 10152 | W46: 10073 | X46: 10123 | Y46: 10073 | Z46: -1 | AA46: -100 | AC46: 5184.5 | AD46: 1.9
A47: 12150 | B47: Coonamble Shire Council | C47: 9 | D47: 4578 | E47: 4476 | F47: 4527 | G47: 4394 | H47: 4435 | I47: 4305 | J47: 4349.5 | K47: 4253 | L47: 4279 | M47: 4233 | N47: 4243 | O47: 4223 | P47: 4228 | Q47: 4224 | R47: 4223.5 | S47: 4226 | T47: 4225 | U47: 4238 | V47: 4232 | W47: 4279 | X47: 4258.5 | Y47: 4279 | Z47: 1 | AA47: 41 | AC47: 9915.9 | AD47: 0.4
A48: 12200 | B48: Cootamundra Shire Council | C48: 10 | D48: 7529 | E48: 7494 | F48: 7511.5 | G48: 7494 | H48: 7494 | I48: 7483 | J48: 7488.5 | K48: 7451 | L48: 7467 | M48: 7419 | N48: 7435 | O48: 7471 | P48: 7445 | Q48: 7508 | R48: 7489.5 | S48: 7546 | T48: 7527 | U48: 7622 | V48: 7584 | W48: 7625 | X48: 7623.5 | Y48: 7625 | Z48: 0 | AA48: 3 | AC48: 1523.8 | AD48: 5
A49: 12300 | B49: Corowa Shire Council | C49: 11 | D49: 10819 | E49: 10910 | F49: 10864.5 | G49: 11027 | H49: 10968.5 | I49: 11216 | J49: 11121.5 | K49: 11220 | L49: 11218 | M49: 11233 | N49: 11226.5 | O49: 11298 | P49: 11265.5 | Q49: 11318 | R49: 11308 | S49: 11324 | T49: 11321 | U49: 11387 | V49: 11355.5 | W49: 11410 | X49: 11398.5 | Y49: 11410 | Z49: 0.2 | AA49: 23 | AC49: 2329.3 | AD49: 4.9
A50: 12350 | B50: Cowra Shire Council | C50: 1 | D50: 12849 | E50: 12804 | F50: 12826.5 | G50: 12774 | H50: 12789 | I50: 12754 | J50: 12764 | K50: 12688 | L50: 12721 | M50: 12591 | N50: 12639.5 | O50: 12548 | P50: 12569.5 | Q50: 12533 | R50: 12540.5 | S50: 12523 | T50: 12528 | U50: 12640 | V50: 12581.5 | W50: 12551 | X50: 12595.5 | Y50: 12551 | Z50: -0.7 | AA50: -89 | AC50: 2808.7 | AD50: 4.5
A51: 12500 | B51: Deniliquin Council | C51: 11 | D51: 8029 | E51: 7863 | F51: 7946 | G51: 7723 | H51: 7793 | I51: 7586 | J51: 7654.5 | K51: 7541 | L51: 7563.5 | M51: 7452 | N51: 7496.5 | O51: 7446 | P51: 7449 | Q51: 7366 | R51: 7406 | S51: 7303 | T51: 7334.5 | U51: 7336 | V51: 7319.5 | W51: 7376 | X51: 7356 | Y51: 7376 | Z51: 0.5 | AA51: 40 | AC51: 143.2 | AD51: 51.5
A52: 12600 | B52: Dubbo City Council | C52: 4 | D52: 38506 | E52: 38567 | F52: 38536.5 | G52: 38653 | H52: 38610 | I52: 38834 | J52: 38743.5 | K52: 39004 | L52: 38919 | M52: 39204 | N52: 39104 | O52: 39626 | P52: 39415 | Q52: 40068 | R52: 39847 | S52: 40246 | T52: 40157 | U52: 40614 | V52: 40430 | W52: 40975 | X52: 40794.5 | Y52: 40975 | Z52: 0.9 | AA52: 361 | AC52: 3425.7 | AD52: 12
A53: 12700 | B53: Dungog Shire Council | C53: 4 | D53: 8312 | E53: 8233 | F53: 8272.5 | G53: 8263 | H53: 8248 | I53: 8245 | J53: 8254 | K53: 8245 | L53: 8245 | M53: 8286 | N53: 8265.5 | O53: 8415 | P53: 8350.5 | Q53: 8457 | R53: 8436 | S53: 8556 | T53: 8506.5 | U53: 8706 | V53: 8631 | W53: 8884 | X53: 8795 | Y53: 8884 | Z53: 2 | AA53: 178 | AC53: 2250 | AD53: 3.9
A54: 12750 | B54: Eurobodalla Shire Council | C54: 10 | D54: 34855 | E54: 35326 | F54: 35090.5 | G54: 35662 | H54: 35494 | I54: 35855 | J54: 35758.5 | K54: 36103 | L54: 35979 | M54: 36301 | N54: 36202 | O54: 36462 | P54: 36381.5 | Q54: 36807 | R54: 36634.5 | S54: 37082 | T54: 36944.5 | U54: 37104 | V54: 37093 | W54: 37234 | X54: 37169 | Y54: 37234 | Z54: 0.4 | AA54: 130 | AC54: 3428.2 | AD54: 10.9
A55: 12850 | B55: Fairfield City Council | C55: 4 | D55: 186489 | E55: 185562 | F55: 186025.5 | G55: 185740 | H55: 185651 | I55: 186117 | J55: 185928.5 | K55: 187872 | L55: 186994.5 | M55: 190654 | N55: 189263 | O55: 193557 | P55: 192105.5 | Q55: 195174 | R55: 194365.5 | S55: 196479 | T55: 195826.5 | U55: 198465 | V55: 197472 | W55: 201427 | X55: 199946 | Y55: 201427 | Z55: 1.5 | AA55: 2962 | AC55: 101.5 | AD55: 1984.1
A56: 12900 | B56: Forbes Shire Council | C56: 3 | D56: 9907 | E56: 9744 | F56: 9825.5 | G56: 9610 | H56: 9677 | I56: 9540 | J56: 9575 | K56: 9573 | L56: 9556.5 | M56: 9526 | N56: 9549.5 | O56: 9562 | P56: 9544 | Q56: 9495 | R56: 9528.5 | S56: 9469 | T56: 9482 | U56: 9533 | V56: 9501 | W56: 9664 | X56: 9598.5 | Y56: 9664 | Z56: 1.4 | AA56: 131 | AC56: 4718.1 | AD56: 2
A57: 12950 | B57: Gilgandra Shire Council | C57: 10 | D57: 4706 | E57: 4660 | F57: 4683 | G57: 4652 | H57: 4656 | I57: 4618 | J57: 4635 | K57: 4532 | L57: 4575 | M57: 4471 | N57: 4501.5 | O57: 4498 | P57: 4484.5 | Q57: 4529 | R57: 4513.5 | S57: 4515 | T57: 4522 | U57: 4483 | V57: 4499 | W57: 4488 | X57: 4485.5 | Y57: 4488 | Z57: 0.1 | AA57: 5 | AC57: 4832 | AD57: 0.9
A58: 13010 | B58: Glen Innes Severn Council | C58: 9 | D58: 8870 | E58: 8876 | F58: 8873 | G58: 8907 | H58: 8891.5 | I58: 8987 | J58: 8947 | K58: 8919 | L58: 8953 | M58: 8907 | N58: 8913 | O58: 8926 | P58: 8916.5 | Q58: 8939 | R58: 8932.5 | S58: 8911 | T58: 8925 | U58: 8903 | V58: 8907 | W58: 8905 | X58: 8904 | Y58: 8905 | Z58: 0 | AA58: 2 | AC58: 5480.4 | AD58: 1.6
A59: 13050 | B59: Gloucester Shire Council | C59: 10 | D59: 4866 | E59: 4850 | F59: 4858 | G59: 4858 | H59: 4854 | I59: 4879 | J59: 4868.5 | K59: 4851 | L59: 4865 | M59: 4845 | N59: 4848 | O59: 4874 | P59: 4859.5 | Q59: 4929 | R59: 4901.5 | S59: 4991 | T59: 4960 | U59: 5015 | V59: 5003 | W59: 4974 | X59: 4994.5 | Y59: 4974 | Z59: -0.8 | AA59: -41 | AC59: 2950.2 | AD59: 1.7
A60: 13100 | B60: Gosford City Council | C60: 10 | D60: 160737 | E60: 160501 | F60: 160619 | G60: 160733 | H60: 160617 | I60: 161158 | J60: 160945.5 | K60: 162272 | L60: 161715 | M60: 164469 | N60: 163370.5 | O60: 166396 | P60: 165432.5 | Q60: 167686 | R60: 167041 | S60: 168323 | T60: 168004.5 | U60: 169574 | V60: 168948.5 | W60: 170752 | X60: 170163 | Y60: 170752 | Z60: 0.7 | AA60: 1178 | AC60: 941.1 | AD60: 181.4
A61: 13310 | B61: Goulburn Mulwaree Council | C61: 7 | D61: 26576 | E61: 26559 | F61: 26567.5 | G61: 26615 | H61: 26587 | I61: 26695 | J61: 26655 | K61: 26803 | L61: 26749 | M61: 27166 | N61: 26984.5 | O61: 27654 | P61: 27410 | Q61: 28083 | R61: 27868.5 | S61: 28363 | T61: 28223 | U61: 28745 | V61: 28554 | W61: 29230 | X61: 28987.5 | Y61: 29230 | Z61: 1.7 | AA61: 485 | AC61: 3220 | AD61: 9.1
A62: 13320 | B62: Great Lakes Council | C62: 4 | D62: 32890 | E62: 33146 | F62: 33018 | G62: 33372 | H62: 33259 | I62: 33576 | J62: 33474 | K62: 33996 | L62: 33786 | M62: 34400 | N62: 34198 | O62: 34856 | P62: 34628 | Q62: 35369 | R62: 35112.5 | S62: 35737 | T62: 35553 | U62: 35977 | V62: 35857 | W62: 36312 | X62: 36144.5 | Y62: 36312 | Z62: 0.9 | AA62: 335 | AC62: 3373.3 | AD62: 10.8
A63: 13340 | B63: Greater Hume Shire Council | C63: 4 | D63: 10189 | E63: 10126 | F63: 10157.5 | G63: 10036 | H63: 10081 | I63: 9999 | J63: 10017.5 | K63: 9985 | L63: 9992 | M63: 9988 | N63: 9986.5 | O63: 10009 | P63: 9998.5 | Q63: 10060 | R63: 10034.5 | S63: 10072 | T63: 10066 | U63: 10140 | V63: 10106 | W63: 10176 | X63: 10158 | Y63: 10176 | Z63: 0.4 | AA63: 36 | AC63: 5749.3 | AD63: 1.8
A64: 13380 | B64: Greater Taree City Council | C64: 11 | D64: 45258 | E64: 45734 | F64: 45496 | G64: 46051 | H64: 45892.5 | I64: 46124 | J64: 46087.5 | K64: 46478 | L64: 46301 | M64: 46846 | N64: 46662 | O64: 47212 | P64: 47029 | Q64: 47650 | R64: 47431 | S64: 48090 | T64: 47870 | U64: 48403 | V64: 48246.5 | W64: 48846 | X64: 48624.5 | Y64: 48846 | Z64: 0.9 | AA64: 443 | AC64: 3729.1 | AD64: 13.1
A65: 13450 | B65: Griffith City Council | C65: 4 | D65: 24277 | E65: 24235 | F65: 24256 | G65: 24329 | H65: 24282 | I65: 24450 | J65: 24389.5 | K65: 24583 | L65: 24516.5 | M65: 24817 | N65: 24700 | O65: 25100 | P65: 24958.5 | Q65: 25264 | R65: 25182 | S65: 25395 | T65: 25329.5 | U65: 25493 | V65: 25444 | W65: 25425 | X65: 25459 | Y65: 25425 | Z65: -0.3 | AA65: -68 | AC65: 1639.9 | AD65: 15.5
A66: 13500 | B66: Gundagai Shire Council | C66: 4 | D66: 3763 | E66: 3754 | F66: 3758.5 | G66: 3762 | H66: 3758 | I66: 3771 | J66: 3766.5 | K66: 3750 | L66: 3760.5 | M66: 3749 | N66: 3749.5 | O66: 3759 | P66: 3754 | Q66: 3766 | R66: 3762.5 | S66: 3762 | T66: 3764 | U66: 3767 | V66: 3764.5 | W66: 3747 | X66: 3757 | Y66: 3747 | Z66: -0.5 | AA66: -20 | AC66: 2457.1 | AD66: 1.5
A67: 13550 | B67: Gunnedah Shire Council | C67: 9 | D67: 12036 | E67: 11892 | F67: 11964 | G67: 11792 | H67: 11842 | I67: 11782 | J67: 11787 | K67: 11879 | L67: 11830.5 | M67: 11987 | N67: 11933 | O67: 12151 | P67: 12069 | Q67: 12344 | R67: 12247.5 | S67: 12519 | T67: 12431.5 | U67: 12618 | V67: 12568.5 | W67: 12688 | X67: 12653 | Y67: 12688 | Z67: 0.6 | AA67: 70 | AC67: 4987.4 | AD67: 2.5
A68: 13650 | B68: Guyra Shire Council | C68: 11 | D68: 4393 | E68: 4353 | F68: 4373 | G68: 4344 | H68: 4348.5 | I68: 4333 | J68: 4338.5 | K68: 4324 | L68: 4328.5 | M68: 4350 | N68: 4337 | O68: 4419 | P68: 4384.5 | Q68: 4478 | R68: 4448.5 | S68: 4520 | T68: 4499 | U68: 4557 | V68: 4538.5 | W68: 4645 | X68: 4601 | Y68: 4645 | Z68: 1.9 | AA68: 88 | AC68: 4389.6 | AD68: 1.1
A69: 13660 | B69: Gwydir Shire Council | C69: 9 | D69: 5573 | E69: 5492 | F69: 5532.5 | G69: 5442 | H69: 5467 | I69: 5428 | J69: 5435 | K69: 5307 | L69: 5367.5 | M69: 5210 | N69: 5258.5 | O69: 5167 | P69: 5188.5 | Q69: 5131 | R69: 5149 | S69: 5102 | T69: 5116.5 | U69: 5117 | V69: 5109.5 | W69: 5104 | X69: 5110.5 | Y69: 5104 | Z69: -0.3 | AA69: -13 | AC69: 9262.4 | AD69: 0.6
A70: 13700 | B70: Harden Shire Council | C70: 10 | D70: 3720 | E70: 3680 | F70: 3700 | G70: 3665 | H70: 3672.5 | I70: 3668 | J70: 3666.5 | K70: 3662 | L70: 3665 | M70: 3661 | N70: 3661.5 | O70: 3652 | P70: 3656.5 | Q70: 3661 | R70: 3656.5 | S70: 3695 | T70: 3678 | U70: 3716 | V70: 3705.5 | W70: 3762 | X70: 3739 | Y70: 3762 | Z70: 1.2 | AA70: 46 | AC70: 1868.3 | AD70: 2
A71: 13800 | B71: Hawkesbury City Council | C71: 9 | D71: 62530 | E71: 62032 | F71: 62281 | G71: 61698 | H71: 61865 | I71: 61725 | J71: 61711.5 | K71: 62262 | L71: 61993.5 | M71: 63066 | N71: 62664 | O71: 63618 | P71: 63342 | Q71: 63982 | R71: 63800 | S71: 64353 | T71: 64167.5 | U71: 64639 | V71: 64496 | W71: 65114 | X71: 64876.5 | Y71: 65114 | Z71: 0.7 | AA71: 475 | AC71: 2774.6 | AD71: 23.5
A72: 13850 | B72: Hay Shire Council | C72: 6 | D72: 3582 | E72: 3538 | F72: 3560 | G72: 3512 | H72: 3525 | I72: 3483 | J72: 3497.5 | K72: 3394 | L72: 3438.5 | M72: 3292 | N72: 3343 | O72: 3209 | P72: 3250.5 | Q72: 3153 | R72: 3181 | S72: 3085 | T72: 3119 | U72: 3015 | V72: 3050 | W72: 2962 | X72: 2988.5 | Y72: 2962 | Z72: -1.8 | AA72: -53 | AC72: 11326 | AD72: 0.3
A73: 13950 | B73: Holroyd City Council | C73: 9 | D73: 89413 | E73: 89792 | F73: 89602.5 | G73: 91042 | H73: 90417 | I73: 92752 | J73: 91897 | K73: 95335 | L73: 94043.5 | M73: 98038 | N73: 96686.5 | O73: 100097 | P73: 99067.5 | Q73: 102076 | R73: 101086.5 | S73: 104079 | T73: 103077.5 | U73: 106164 | V73: 105121.5 | W73: 108889 | X73: 107526.5 | Y73: 108889 | Z73: 2.6 | AA73: 2725 | AC73: 40.2 | AD73: 2709.9
A74: 14000 | B74: The Council of the Shire of Hornsby | C74: 3 | D74: 154504 | E74: 155124 | F74: 154814 | G74: 155587 | H74: 155355.5 | I74: 155848 | J74: 155717.5 | K74: 157411 | L74: 156629.5 | M74: 159382 | N74: 158396.5 | O74: 161377 | P74: 160379.5 | Q74: 162808 | R74: 162092.5 | S74: 163783 | T74: 163295.5 | U74: 165160 | V74: 164471.5 | W74: 166855 | X74: 166007.5 | Y74: 166855 | Z74: 1 | AA74: 1695 | AC74: 462.1 | AD74: 361.1
A75: 14100 | B75: The Council of the Municipality of Hunters Hill | C75: 3 | D75: 13512 | E75: 13631 | F75: 13571.5 | G75: 13636 | H75: 13633.5 | I75: 13662 | J75: 13649 | K75: 13716 | L75: 13689 | M75: 13742 | N75: 13729 | O75: 13835 | P75: 13788.5 | Q75: 13854 | R75: 13844.5 | S75: 13897 | T75: 13875.5 | U75: 14162 | V75: 14029.5 | W75: 14491 | X75: 14326.5 | Y75: 14491 | Z75: 2.3 | AA75: 329 | AC75: 5.7 | AD75: 2534.7
A76: 14150 | B76: Hurstville City Council | C76: 11 | D76: 74564 | E76: 74809 | F76: 74686.5 | G76: 75458 | H76: 75133.5 | I76: 76007 | J76: 75732.5 | K76: 77392 | L76: 76699.5 | M76: 78916 | N76: 78154 | O76: 80468 | P76: 79692 | Q76: 81796 | R76: 81132 | S76: 82810 | T76: 82303 | U76: 83755 | V76: 83282.5 | W76: 84859 | X76: 84307 | Y76: 84859 | Z76: 1.3 | AA76: 1104 | AC76: 22.7 | AD76: 3734.3
A77: 14200 | B77: Inverell Shire Council | C77: 8 | D77: 15723 | E77: 15708 | F77: 15715.5 | G77: 15765 | H77: 15736.5 | I77: 15845 | J77: 15805 | K77: 15973 | L77: 15909 | M77: 16118 | N77: 16045.5 | O77: 16320 | P77: 16219 | Q77: 16476 | R77: 16398 | S77: 16584 | T77: 16530 | U77: 16678 | V77: 16631 | W77: 16727 | X77: 16702.5 | Y77: 16727 | Z77: 0.3 | AA77: 49 | AC77: 8594.9 | AD77: 1.9
A78: 14250 | B78: Jerilderie Shire Council | C78: 10 | D78: 1804 | E78: 1754 | F78: 1779 | G78: 1708 | H78: 1731 | I78: 1675 | J78: 1691.5 | K78: 1626 | L78: 1650.5 | M78: 1595 | N78: 1610.5 | O78: 1586 | P78: 1590.5 | Q78: 1568 | R78: 1577 | S78: 1538 | T78: 1553 | U78: 1524 | V78: 1531 | W78: 1504 | X78: 1514 | Y78: 1504 | Z78: -1.3 | AA78: -20 | AC78: 3373.1 | AD78: 0.4
A79: 14300 | B79: Junee Shire Council | C79: 4 | D79: 5861 | E79: 5854 | F79: 5857.5 | G79: 5882 | H79: 5868 | I79: 5943 | J79: 5912.5 | K79: 5942 | L79: 5942.5 | M79: 5978 | N79: 5960 | O79: 6054 | P79: 6016 | Q79: 6105 | R79: 6079.5 | S79: 6132 | T79: 6118.5 | U79: 6160 | V79: 6146 | W79: 6227 | X79: 6193.5 | Y79: 6227 | Z79: 1.1 | AA79: 67 | AC79: 2030 | AD79: 3.1
A80: 14350 | B80: Kempsey Shire Council | C80: 2 | D80: 27466 | E80: 27608 | F80: 27537 | G80: 27936 | H80: 27772 | I80: 28032 | J80: 27984 | K80: 28193 | L80: 28112.5 | M80: 28431 | N80: 28312 | O80: 28775 | P80: 28603 | Q80: 28960 | R80: 28867.5 | S80: 29128 | T80: 29044 | U80: 29286 | V80: 29207 | W80: 29361 | X80: 29323.5 | Y80: 29361 | Z80: 0.3 | AA80: 75 | AC80: 3375.7 | AD80: 8.7
A81: 14400 | B81: The Council of the Municipality of Kiama | C81: 3 | D81: 19836 | E81: 19784 | F81: 19810 | G81: 19690 | H81: 19737 | I81: 19626 | J81: 19658 | K81: 19809 | L81: 19717.5 | M81: 19933 | N81: 19871 | O81: 20219 | P81: 20076 | Q81: 20522 | R81: 20370.5 | S81: 20806 | T81: 20664 | U81: 20870 | V81: 20838 | W81: 21047 | X81: 20958.5 | Y81: 21047 | Z81: 0.8 | AA81: 177 | AC81: 257.7 | AD81: 81.7
A82: 14450 | B82: Kogarah City Council | C82: 10 | D82: 52619 | E82: 53367 | F82: 52993 | G82: 54032 | H82: 53699.5 | I82: 54579 | J82: 54305.5 | K82: 55359 | L82: 54969 | M82: 56371 | N82: 55865 | O82: 57511 | P82: 56941 | Q82: 58244 | R82: 57877.5 | S82: 58916 | T82: 58580 | U82: 59768 | V82: 59342 | W82: 60411 | X82: 60089.5 | Y82: 60411 | Z82: 1.1 | AA82: 643 | AC82: 15.5 | AD82: 3885.5
A83: 14500 | B83: Ku-ring-gai Council | C83: 10 | D83: 106559 | E83: 105839 | F83: 106199 | G83: 104883 | H83: 105361 | I83: 104459 | J83: 104671 | K83: 105551 | L83: 105005 | M83: 107976 | N83: 106763.5 | O83: 110464 | P83: 109220 | Q83: 112643 | R83: 111553.5 | S83: 114604 | T83: 113623.5 | U83: 116596 | V83: 115600 | W83: 119027 | X83: 117811.5 | Y83: 119027 | Z83: 2.1 | AA83: 2431 | AC83: 85.4 | AD83: 1393.8
A84: 14550 | B84: Kyogle Council | C84: 5 | D84: 9590 | E84: 9525 | F84: 9557.5 | G84: 9507 | H84: 9516 | I84: 9491 | J84: 9499 | K84: 9491 | L84: 9491 | M84: 9490 | N84: 9490.5 | O84: 9514 | P84: 9502 | Q84: 9544 | R84: 9529 | S84: 9537 | T84: 9540.5 | U84: 9534 | V84: 9535.5 | W84: 9538 | X84: 9536 | Y84: 9538 | Z84: 0 | AA84: 4 | AC84: 3584 | AD84: 2.7
A85: 14600 | B85: Lachlan Shire Council | C85: 2 | D85: 7233 | E85: 7090 | F85: 7161.5 | G85: 6956 | H85: 7023 | I85: 6829 | J85: 6892.5 | K85: 6733 | L85: 6781 | M85: 6692 | N85: 6712.5 | O85: 6678 | P85: 6685 | Q85: 6663 | R85: 6670.5 | S85: 6701 | T85: 6682 | U85: 6736 | V85: 6718.5 | W85: 6748 | X85: 6742 | Y85: 6748 | Z85: 0.2 | AA85: 12 | AC85: 14965.4 | AD85: 0.5
A86: 14650 | B86: Lake Macquarie City Council | C86: 11 | D86: 188171 | E86: 188415 | F86: 188293 | G86: 188547 | H86: 188481 | I86: 188503 | J86: 188525 | K86: 189672 | L86: 189087.5 | M86: 191478 | N86: 190575 | O86: 193585 | P86: 192531.5 | Q86: 195263 | R86: 194424 | S86: 196811 | T86: 196037 | U86: 198598 | V86: 197704.5 | W86: 200796 | X86: 199697 | Y86: 200796 | Z86: 1.1 | AA86: 2198 | AC86: 648 | AD86: 309.9
A87: 14700 | B87: Lane Cove Municipal Council | C87: 2 | D87: 31695 | E87: 31599 | F87: 31647 | G87: 31538 | H87: 31568.5 | I87: 31527 | J87: 31532.5 | K87: 31678 | L87: 31602.5 | M87: 31918 | N87: 31798 | O87: 32308 | P87: 32113 | Q87: 32803 | R87: 32555.5 | S87: 33233 | T87: 33018 | U87: 33603 | V87: 33418 | W87: 33996 | X87: 33799.5 | Y87: 33996 | Z87: 1.2 | AA87: 393 | AC87: 10.5 | AD87: 3244
A88: 14750 | B88: Leeton Shire Council | C88: 4 | D88: 11755 | E88: 11681 | F88: 11718 | G88: 11590 | H88: 11635.5 | I88: 11562 | J88: 11576 | K88: 11502 | L88: 11532 | M88: 11457 | N88: 11479.5 | O88: 11461 | P88: 11459 | Q88: 11432 | R88: 11446.5 | S88: 11406 | T88: 11419 | U88: 11501 | V88: 11453.5 | W88: 11539 | X88: 11520 | Y88: 11539 | Z88: 0.3 | AA88: 38 | AC88: 1167 | AD88: 9.9
A89: 14800 | B89: Leichhardt Municipal Council | C89: 7 | D89: 50661 | E89: 50859 | F89: 50760 | G89: 50914 | H89: 50886.5 | I89: 51243 | J89: 51078.5 | K89: 52095 | L89: 51669 | M89: 53133 | N89: 52614 | O89: 54115 | P89: 53624 | Q89: 54969 | R89: 54542 | S89: 55642 | T89: 55305.5 | U89: 56364 | V89: 56003 | W89: 57266 | X89: 56815 | Y89: 57266 | Z89: 1.6 | AA89: 902 | AC89: 10.5 | AD89: 5428.2
A90: 14850 | B90: Lismore City Council | C90: 10 | D90: 42681 | E90: 42764 | F90: 42722.5 | G90: 43011 | H90: 42887.5 | I90: 43338 | J90: 43174.5 | K90: 43636 | L90: 43487 | M90: 43750 | N90: 43693 | O90: 43940 | P90: 43845 | Q90: 44190 | R90: 44065 | S90: 44348 | T90: 44269 | U90: 44501 | V90: 44424.5 | W90: 44637 | X90: 44569 | Y90: 44637 | Z90: 0.3 | AA90: 136 | AC90: 1287.8 | AD90: 34.7
A91: 14870 | B91: City of Lithgow Council | C91: 9 | D91: 20418 | E91: 20357 | F91: 20387.5 | G91: 20272 | H91: 20314.5 | I91: 20186 | J91: 20229 | K91: 20277 | L91: 20231.5 | M91: 20352 | N91: 20314.5 | O91: 20621 | P91: 20486.5 | Q91: 20732 | R91: 20676.5 | S91: 20850 | T91: 20791 | U91: 21003 | V91: 20926.5 | W91: 21118 | X91: 21060.5 | Y91: 21118 | Z91: 0.5 | AA91: 115 | AC91: 4511.9 | AD91: 4.7
A92: 14900 | B92: Liverpool City Council | C92: 4 | D92: 163835 | E92: 165627 | F92: 164731 | G92: 167472 | H92: 166549.5 | I92: 169868 | J92: 168670 | K92: 172875 | L92: 171371.5 | M92: 177372 | N92: 175123.5 | O92: 181712 | P92: 179542 | Q92: 184910 | R92: 183311 | S92: 188088 | T92: 186499 | U92: 191401 | V92: 189744.5 | W92: 195355 | X92: 193378 | Y92: 195355 | Z92: 2.1 | AA92: 3954 | AC92: 305.4 | AD92: 639.6
A93: 14920 | B93: Liverpool Plains Shire Council | C93: 2 | D93: 7859 | E93: 7797 | F93: 7828 | G93: 7736 | H93: 7766.5 | I93: 7717 | J93: 7726.5 | K93: 7720 | L93: 7718.5 | M93: 7717 | N93: 7718.5 | O93: 7718 | P93: 7717.5 | Q93: 7738 | R93: 7728 | S93: 7761 | T93: 7749.5 | U93: 7789 | V93: 7775 | W93: 7763 | X93: 7776 | Y93: 7763 | Z93: -0.3 | AA93: -26 | AC93: 5082.3 | AD93: 1.5
A94: 14950 | B94: Lockhart Shire Council | C94: 3 | D94: 3404 | E94: 3330 | F94: 3367 | G94: 3267 | H94: 3298.5 | I94: 3237 | J94: 3252 | K94: 3203 | L94: 3220 | M94: 3171 | N94: 3187 | O94: 3159 | P94: 3165 | Q94: 3133 | R94: 3146 | S94: 3098 | T94: 3115.5 | U94: 3081 | V94: 3089.5 | W94: 3021 | X94: 3051 | Y94: 3021 | Z94: -1.9 | AA94: -60 | AC94: 2895.9 | AD94: 1
A95: 15050 | B95: Maitland City Council | C95: 4 | D95: 59167 | E95: 60440 | F95: 59803.5 | G95: 61961 | H95: 61200.5 | I95: 63505 | J95: 62733 | K95: 65143 | L95: 64324 | M95: 66244 | N95: 65693.5 | O95: 67268 | P95: 66756 | Q95: 68561 | R95: 67914.5 | S95: 69924 | T95: 69242.5 | U95: 71891 | V95: 70907.5 | W95: 73447 | X95: 72669 | Y95: 73447 | Z95: 2.2 | AA95: 1556 | AC95: 391.5 | AD95: 187.6
A96: 15150 | B96: Manly Council | C96: 11 | D96: 38575 | E96: 38646 | F96: 38610.5 | G96: 38627 | H96: 38636.5 | I96: 39026 | J96: 38826.5 | K96: 39775 | L96: 39400.5 | M96: 39852 | N96: 39813.5 | O96: 40938 | P96: 40395 | Q96: 41899 | R96: 41418.5 | S96: 42818 | T96: 42358.5 | U96: 43412 | V96: 43115 | W96: 44232 | X96: 43822 | Y96: 44232 | Z96: 1.9 | AA96: 820 | AC96: 14.4 | AD96: 3081.3
A97: 15200 | B97: Marrickville Council | C97: 2 | D97: 74965 | E97: 74516 | F97: 74740.5 | G97: 74740 | H97: 74628 | I97: 75090 | J97: 74915 | K97: 76470 | L97: 75780 | M97: 78035 | N97: 77252.5 | O97: 79225 | P97: 78630 | Q97: 80388 | R97: 79806.5 | S97: 81121 | T97: 80754.5 | U97: 81735 | V97: 81428 | W97: 82523 | X97: 82129 | Y97: 82523 | Z97: 1 | AA97: 788 | AC97: 16.5 | AD97: 4995.5
A98: 15270 | B98: Mid-Western Regional Council | C98: 10 | D98: 21862 | E98: 21706 | F98: 21784 | G98: 21647 | H98: 21676.5 | I98: 21641 | J98: 21644 | K98: 21887 | L98: 21764 | M98: 22186 | N98: 22036.5 | O98: 22469 | P98: 22327.5 | Q98: 22774 | R98: 22621.5 | S98: 23020 | T98: 22897 | U98: 23532 | V98: 23276 | W98: 23843 | X98: 23687.5 | Y98: 23843 | Z98: 1.3 | AA98: 311 | AC98: 8752.8 | AD98: 2.7
A99: 15300 | B99: Moree Plains Shire Council | C99: 9 | D99: 15457 | E99: 15028 | F99: 15242.5 | G99: 14693 | H99: 14860.5 | I99: 14407 | J99: 14550 | K99: 14155 | L99: 14281 | M99: 14070 | N99: 14112.5 | O99: 14019 | P99: 14044.5 | Q99: 14032 | R99: 14025.5 | S99: 14043 | T99: 14037.5 | U99: 14175 | V99: 14109 | W99: 14250 | X99: 14212.5 | Y99: 14250 | Z99: 0.5 | AA99: 75 | AC99: 17906 | AD99: 0.8
A100: 15350 | B100: Mosman Municipal Council | C100: 11 | D100: 27680 | E100: 27737 | F100: 27708.5 | G100: 27538 | H100: 27637.5 | I100: 27570 | J100: 27554 | K100: 27900 | L100: 27735 | M100: 28422 | N100: 28161 | O100: 28761 | P100: 28591.5 | Q100: 29131 | R100: 28946 | S100: 29351 | T100: 29241 | U100: 29614 | V100: 29482.5 | W100: 29983 | X100: 29798.5 | Y100: 29983 | Z100: 1.2 | AA100: 369 | AC100: 8.7 | AD100: 3465.8
A101: 15500 | B101: Murray Shire Council | C101: 11 | D101: 6271 | E101: 6320 | F101: 6295.5 | G101: 6394 | H101: 6357 | I101: 6552 | J101: 6473 | K101: 6757 | L101: 6654.5 | M101: 6906 | N101: 6831.5 | O101: 7017 | P101: 6961.5 | Q101: 7119 | R101: 7068 | S101: 7184 | T101: 7151.5 | U101: 7318 | V101: 7251 | W101: 7418 | X101: 7368 | Y101: 7418 | Z101: 1.4 | AA101: 100 | AC101: 4344.5 | AD101: 1.7
A102: 15550 | B102: Murrumbidgee Shire Council | C102: 11 | D102: 2598 | E102: 2574 | F102: 2586 | G102: 2565 | H102: 2569.5 | I102: 2544 | J102: 2554.5 | K102: 2483 | L102: 2513.5 | M102: 2444 | N102: 2463.5 | O102: 2406 | P102: 2425 | Q102: 2380 | R102: 2393 | S102: 2350 | T102: 2365 | U102: 2416 | V102: 2383 | W102: 2503 | X102: 2459.5 | Y102: 2503 | Z102: 3.6 | AA102: 87 | AC102: 3506.7 | AD102: 0.7
A103: 15650 | B103: Muswellbrook Shire Council | C103: 10 | D103: 15402 | E103: 15402 | F103: 15402 | G103: 15467 | H103: 15434.5 | I103: 15639 | J103: 15553 | K103: 15713 | L103: 15676 | M103: 15749 | N103: 15731 | O103: 15878 | P103: 15813.5 | Q103: 16108 | R103: 15993 | S103: 16328 | T103: 16218 | U103: 16673 | V103: 16500.5 | W103: 16851 | X103: 16762 | Y103: 16851 | Z103: 1.1 | AA103: 178 | AC103: 3405 | AD103: 4.9
A104: 15700 | B104: Nambucca Shire Council | C104: 10 | D104: 17849 | E104: 18136 | F104: 17992.5 | G104: 18247 | H104: 18191.5 | I104: 18299 | J104: 18273 | K104: 18456 | L104: 18377.5 | M104: 18695 | N104: 18575.5 | O104: 18892 | P104: 18793.5 | Q104: 19140 | R104: 19016 | S104: 19235 | T104: 19187.5 | U104: 19365 | V104: 19300 | W104: 19529 | X104: 19447 | Y104: 19529 | Z104: 0.8 | AA104: 164 | AC104: 1491.4 | AD104: 13.1
A105: 15750 | B105: Narrabri Shire Council | C105: 5 | D105: 14050 | E105: 13784 | F105: 13917 | G105: 13592 | H105: 13688 | I105: 13477 | J105: 13534.5 | K105: 13359 | L105: 13418 | M105: 13303 | N105: 13331 | O105: 13349 | P105: 13326 | Q105: 13394 | R105: 13371.5 | S105: 13438 | T105: 13416 | U105: 13529 | V105: 13483.5 | W105: 13685 | X105: 13607 | Y105: 13685 | Z105: 1.2 | AA105: 156 | AC105: 13014.1 | AD105: 1.1
A106: 15800 | B106: Narrandera Shire Council | C106: 2 | D106: 6433 | E106: 6307 | F106: 6370 | G106: 6221 | H106: 6264 | I106: 6149 | J106: 6185 | K106: 6103 | L106: 6126 | M106: 6069 | N106: 6086 | O106: 6093 | P106: 6081 | Q106: 6105 | R106: 6099 | S106: 6115 | T106: 6110 | U106: 6078 | V106: 6096.5 | W106: 6030 | X106: 6054 | Y106: 6030 | Z106: -0.8 | AA106: -48 | AC106: 4116.2 | AD106: 1.5
A107: 15850 | B107: Narromine Shire Council | C107: 10 | D107: 6863 | E107: 6777 | F107: 6820 | G107: 6734 | H107: 6755.5 | I107: 6691 | J107: 6712.5 | K107: 6676 | L107: 6683.5 | M107: 6726 | N107: 6701 | O107: 6748 | P107: 6737 | Q107: 6815 | R107: 6781.5 | S107: 6832 | T107: 6823.5 | U107: 6860 | V107: 6846 | W107: 6872 | X107: 6866 | Y107: 6872 | Z107: 0.2 | AA107: 12 | AC107: 5260.4 | AD107: 1.3
A108: 15900 | B108: Newcastle City Council | C108: 4 | D108: 143613 | E108: 144834 | F108: 144223.5 | G108: 145914 | H108: 145374 | I108: 146623 | J108: 146268.5 | K108: 148524 | L108: 147573.5 | M108: 150553 | N108: 149538.5 | O108: 151895 | P108: 151224 | Q108: 153483 | R108: 152689 | S108: 155550 | T108: 154516.5 | U108: 157346 | V108: 156448 | W108: 158553 | X108: 157949.5 | Y108: 158553 | Z108: 0.8 | AA108: 1207 | AC108: 186.8 | AD108: 848.9
A109: 15950 | B109: North Sydney Council | C109: 11 | D109: 59583 | E109: 60271 | F109: 59927 | G109: 60850 | H109: 60560.5 | I109: 61512 | J109: 61181 | K109: 62476 | L109: 61994 | M109: 63484 | N109: 62980 | O109: 64762 | P109: 64123 | Q109: 65850 | R109: 65306 | S109: 66747 | T109: 66298.5 | U109: 67888 | V109: 67317.5 | W109: 69248 | X109: 68568 | Y109: 69248 | Z109: 2 | AA109: 1360 | AC109: 10.5 | AD109: 6612.3
A110: 16100 | B110: Oberon Council | C110: 11 | D110: 5243 | E110: 5209 | F110: 5226 | G110: 5193 | H110: 5201 | I110: 5179 | J110: 5186 | K110: 5166 | L110: 5172.5 | M110: 5161 | N110: 5163.5 | O110: 5192 | P110: 5176.5 | Q110: 5207 | R110: 5199.5 | S110: 5209 | T110: 5208 | U110: 5221 | V110: 5215 | W110: 5270 | X110: 5245.5 | Y110: 5270 | Z110: 0.9 | AA110: 49 | AC110: 3626.9 | AD110: 1.5
A111: 16150 | B111: Orange City Council | C111: 3 | D111: 36721 | E111: 36501 | F111: 36611 | G111: 36410 | H111: 36455.5 | I111: 36374 | J111: 36392 | K111: 36801 | L111: 36587.5 | M111: 37401 | N111: 37101 | O111: 37904 | P111: 37652.5 | Q111: 38660 | R111: 38282 | S111: 39419 | T111: 39039.5 | U111: 40160 | V111: 39789.5 | W111: 40869 | X111: 40514.5 | Y111: 40869 | Z111: 1.8 | AA111: 709 | AC111: 283.9 | AD111: 143.9
A112: 16180 | B112: Palerang Council | C112: 7 | D112: 11529 | E112: 11837 | F112: 11683 | G112: 12172 | H112: 12004.5 | I112: 12703 | J112: 12437.5 | K112: 13291 | L112: 12997 | M112: 13782 | N112: 13536.5 | O112: 14232 | P112: 14007 | Q112: 14591 | R112: 14411.5 | S112: 14857 | T112: 14724 | U112: 15092 | V112: 14974.5 | W112: 15306 | X112: 15199 | Y112: 15306 | Z112: 1.4 | AA112: 214 | AC112: 5146.8 | AD112: 3
A113: 16200 | B113: Parkes Shire Council | C113: 2 | D113: 14807 | E113: 14690 | F113: 14748.5 | G113: 14627 | H113: 14658.5 | I113: 14600 | J113: 14613.5 | K113: 14643 | L113: 14621.5 | M113: 14755 | N113: 14699 | O113: 14835 | P113: 14795 | Q113: 14984 | R113: 14909.5 | S113: 15083 | T113: 15033.5 | U113: 15163 | V113: 15123 | W113: 15087 | X113: 15125 | Y113: 15087 | Z113: -0.5 | AA113: -76 | AC113: 5954.9 | AD113: 2.5
A114: 16250 | B114: Parramatta City Council | C114: 5 | D114: 147310 | E114: 148882 | F114: 148096 | G114: 150439 | H114: 149660.5 | I114: 152948 | J114: 151693.5 | K114: 157095 | L114: 155021.5 | M114: 161894 | N114: 159494.5 | O114: 166816 | P114: 164355 | Q114: 171080 | R114: 168948 | S114: 174783 | T114: 172931.5 | U114: 178874 | V114: 176828.5 | W114: 184622 | X114: 181748 | Y114: 184622 | Z114: 3.2 | AA114: 5748 | AC114: 61.4 | AD114: 3009
A115: 16350 | B115: Penrith City Council | C115: 4 | D115: 176610 | E115: 175589 | F115: 176099.5 | G115: 175799 | H115: 175694 | I115: 176067 | J115: 175933 | K115: 177280 | L115: 176673.5 | M115: 179851 | N115: 178565.5 | O115: 181901 | P115: 180876 | Q115: 182948 | R115: 182424.5 | S115: 184589 | T115: 183768.5 | U115: 187103 | V115: 185846 | W115: 190428 | X115: 188765.5 | Y115: 190428 | Z115: 1.8 | AA115: 3325 | AC115: 404.6 | AD115: 470.6
A116: 16370 | B116: Pittwater Council | C116: 4 | D116: 55837 | E116: 55610 | F116: 55723.5 | G116: 55943 | H116: 55776.5 | I116: 56252 | J116: 56097.5 | K116: 56680 | L116: 56466 | M116: 57137 | N116: 56908.5 | O116: 58672 | P116: 57904.5 | Q116: 59577 | R116: 59124.5 | S116: 60455 | T116: 60016 | U116: 61256 | V116: 60855.5 | W116: 62070 | X116: 61663 | Y116: 62070 | Z116: 1.3 | AA116: 814 | AC116: 90.3 | AD116: 687.2
A117: 16380 | B117: Port Macquarie-Hastings Council | C117: 3 | D117: 67960 | E117: 68987 | F117: 68473.5 | G117: 69659 | H117: 69323 | I117: 69947 | J117: 69803 | K117: 71097 | L117: 70522 | M117: 72528 | N117: 71812.5 | O117: 73317 | P117: 72922.5 | Q117: 74460 | R117: 73888.5 | S117: 75232 | T117: 74846 | U117: 76046 | V117: 75639 | W117: 76563 | X117: 76304.5 | Y117: 76563 | Z117: 0.7 | AA117: 517 | AC117: 3683 | AD117: 20.8
A118: 16400 | B118: Port Stephens Council | C118: 4 | D118: 60410 | E118: 61256 | F118: 60833 | G118: 61918 | H118: 61587 | I118: 62132 | J118: 62025 | K118: 63425 | L118: 62778.5 | M118: 64316 | N118: 63870.5 | O118: 65521 | P118: 64918.5 | Q118: 66447 | R118: 65984 | S118: 67214 | T118: 66830.5 | U118: 68042 | V118: 67628 | W118: 68935 | X118: 68488.5 | Y118: 68935 | Z118: 1.3 | AA118: 893 | AC118: 858.5 | AD118: 80.3
A119: 16470 | B119: Queanbeyan City Council | C119: 3 | D119: 35613 | E119: 35946 | F119: 35779.5 | G119: 36714 | H119: 36330 | I119: 37367 | J119: 37040.5 | K119: 37711 | L119: 37539 | M119: 38359 | N119: 38035 | O119: 38958 | P119: 38658.5 | Q119: 39659 | R119: 39308.5 | S119: 39987 | T119: 39823 | U119: 40250 | V119: 40118.5 | W119: 40568 | X119: 40409 | Y119: 40568 | Z119: 0.8 | AA119: 318 | AC119: 172.4 | AD119: 235.4
A120: 16550 | B120: Randwick City Council | C120: 3 | D120: 124252 | E120: 124088 | F120: 124170 | G120: 124596 | H120: 124342 | I120: 125346 | J120: 124971 | K120: 128229 | L120: 126787.5 | M120: 131136 | N120: 129682.5 | O120: 133975 | P120: 132555.5 | Q120: 136006 | R120: 134990.5 | S120: 137792 | T120: 136899 | U120: 139530 | V120: 138661 | W120: 142310 | X120: 140920 | Y120: 142310 | Z120: 2 | AA120: 2780 | AC120: 36.3 | AD120: 3917.1
A121: 16610 | B121: Richmond Valley Council | C121: 4 | D121: 21213 | E121: 21167 | F121: 21190 | G121: 21256 | H121: 21211.5 | I121: 21728 | J121: 21492 | K121: 22067 | L121: 21897.5 | M121: 22291 | N121: 22179 | O121: 22417 | P121: 22354 | Q121: 22597 | R121: 22507 | S121: 22717 | T121: 22657 | U121: 22716 | V121: 22716.5 | W121: 22749 | X121: 22732.5 | Y121: 22749 | Z121: 0.1 | AA121: 33 | AC121: 3047.4 | AD121: 7.5
A122: 16650 | B122: Rockdale City Council | C122: 5 | D122: 93370 | E122: 94063 | F122: 93716.5 | G122: 94897 | H122: 94480 | I122: 95752 | J122: 95324.5 | K122: 97790 | L122: 96771 | M122: 100538 | N122: 99164 | O122: 102501 | P122: 101519.5 | Q122: 103386 | R122: 102943.5 | S122: 103481 | T122: 103433.5 | U122: 105185 | V122: 104333 | W122: 106712 | X122: 105948.5 | Y122: 106712 | Z122: 1.5 | AA122: 1527 | AC122: 28.2 | AD122: 3781.5
A123: 16700 | B123: Ryde City Council | C123: 4 | D123: 98929 | E123: 99089 | F123: 99009 | G123: 99527 | H123: 99308 | I123: 100344 | J123: 99935.5 | K123: 102453 | L123: 101398.5 | M123: 104602 | N123: 103527.5 | O123: 105983 | P123: 105292.5 | Q123: 107319 | R123: 106651 | S123: 108712 | T123: 108015.5 | U123: 110842 | V123: 109777 | W123: 112545 | X123: 111693.5 | Y123: 112545 | Z123: 1.5 | AA123: 1703 | AC123: 40.5 | AD123: 2780.7
A124: 16900 | B124: Shellharbour City Council | C124: 10 | D124: 60815 | E124: 61382 | F124: 61098.5 | G124: 61863 | H124: 61622.5 | I124: 62243 | J124: 62053 | K124: 62916 | L124: 62579.5 | M124: 63956 | N124: 63436 | O124: 64778 | P124: 64367 | Q124: 65597 | R124: 65187.5 | S124: 66218 | T124: 65907.5 | U124: 66869 | V124: 66543.5 | W124: 67797 | X124: 67333 | Y124: 67797 | Z124: 1.4 | AA124: 928 | AC124: 147.4 | AD124: 460.1
A125: 16950 | B125: Shoalhaven City Council | C125: 2 | D125: 88861 | E125: 89374 | F125: 89117.5 | G125: 90173 | H125: 89773.5 | I125: 90505 | J125: 90339 | K125: 91497 | L125: 91001 | M125: 92351 | N125: 91924 | O125: 93754 | P125: 93052.5 | Q125: 95154 | R125: 94454 | S125: 96203 | T125: 95678.5 | U125: 97047 | V125: 96625 | W125: 97694 | X125: 97370.5 | Y125: 97694 | Z125: 0.7 | AA125: 647 | AC125: 4567 | AD125: 21.4
A126: 17000 | B126: Singleton Council | C126: 3 | D126: 21671 | E126: 21886 | F126: 21778.5 | G126: 22254 | H126: 22070 | I126: 22535 | J126: 22394.5 | K126: 22663 | L126: 22599 | M126: 22860 | N126: 22761.5 | O126: 23063 | P126: 22961.5 | Q126: 23335 | R126: 23199 | S126: 23523 | T126: 23429 | U126: 23787 | V126: 23655 | W126: 23751 | X126: 23769 | Y126: 23751 | Z126: -0.2 | AA126: -36 | AC126: 4892.8 | AD126: 4.9
A127: 17050 | B127: Snowy River Shire Council | C127: 4 | D127: 7336 | E127: 7348 | F127: 7342 | G127: 7378 | H127: 7363 | I127: 7439 | J127: 7408.5 | K127: 7515 | L127: 7477 | M127: 7610 | N127: 7562.5 | O127: 7674 | P127: 7642 | Q127: 7747 | R127: 7710.5 | S127: 7771 | T127: 7759 | U127: 7935 | V127: 7853 | W127: 8087 | X127: 8011 | Y127: 8087 | Z127: 1.9 | AA127: 152 | AC127: 6030.4 | AD127: 1.3
A128: 17100 | B128: Strathfield Municipal Council | C128: 10 | D128: 30256 | E128: 31242 | F128: 30749 | G128: 32143 | H128: 31692.5 | I128: 33030 | J128: 32586.5 | K128: 34219 | L128: 33624.5 | M128: 35343 | N128: 34781 | O128: 36592 | P128: 35967.5 | Q128: 37002 | R128: 36797 | S128: 37239 | T128: 37120.5 | U128: 37664 | V128: 37451.5 | W128: 38358 | X128: 38011 | Y128: 38358 | Z128: 1.8 | AA128: 694 | AC128: 13.9 | AD128: 2759.6
A129: 17150 | B129: Sutherland Shire Council | C129: 10 | D129: 212719 | E129: 211907 | F129: 212313 | G129: 211460 | H129: 211683.5 | I129: 211230 | J129: 211345 | K129: 213161 | L129: 212195.5 | M129: 216400 | N129: 214780.5 | O129: 219065 | P129: 217732.5 | Q129: 220060 | R129: 219562.5 | S129: 220250 | T129: 220155 | U129: 221283 | V129: 220766.5 | W129: 223192 | X129: 222237.5 | Y129: 223192 | Z129: 0.9 | AA129: 1909 | AC129: 333.6 | AD129: 669.1
A130: 17200 | B130: Council of the City of Sydney | C130: 2 | D130: 145079 | E130: 152892 | F130: 148985.5 | G130: 158834 | H130: 155863 | I130: 164597 | J130: 161715.5 | K130: 169056 | L130: 166826.5 | M130: 172985 | N130: 171020.5 | O130: 177150 | P130: 175067.5 | Q130: 180748 | R130: 178949 | S130: 183281 | T130: 182014.5 | U130: 187690 | V130: 185485.5 | W130: 191918 | X130: 189804 | Y130: 191918 | Z130: 2.3 | AA130: 4228 | AC130: 26.7 | AD130: 7181.1
A131: 17310 | B131: Tamworth Regional Council | C131: 2 | D131: 54016 | E131: 54111 | F131: 54063.5 | G131: 54363 | H131: 54237 | I131: 54887 | J131: 54625 | K131: 55607 | L131: 55247 | M131: 56148 | N131: 55877.5 | O131: 56814 | P131: 56481 | Q131: 57650 | R131: 57232 | S131: 58228 | T131: 57939 | U131: 58976 | V131: 58602 | W131: 59743 | X131: 59359.5 | Y131: 59743 | Z131: 1.3 | AA131: 767 | AC131: 9884.2 | AD131: 6
A132: 17350 | B132: Temora Shire Council | C132: 4 | D132: 6123 | E132: 6039 | F132: 6081 | G132: 6016 | H132: 6027.5 | I132: 6008 | J132: 6012 | K132: 5977 | L132: 5992.5 | M132: 5959 | N132: 5968 | O132: 5936 | P132: 5947.5 | Q132: 5951 | R132: 5943.5 | S132: 5953 | T132: 5952 | U132: 5983 | V132: 5968 | W132: 5995 | X132: 5989 | Y132: 5995 | Z132: 0.2 | AA132: 12 | AC132: 2802 | AD132: 2.1
A133: 17400 | B133: Tenterfield Shire Council | C133: 7 | D133: 6709 | E133: 6650 | F133: 6679.5 | G133: 6630 | H133: 6640 | I133: 6666 | J133: 6648 | K133: 6731 | L133: 6698.5 | M133: 6796 | N133: 6763.5 | O133: 6882 | P133: 6839 | Q133: 6941 | R133: 6911.5 | S133: 6990 | T133: 6965.5 | U133: 6997 | V133: 6993.5 | W133: 6973 | X133: 6985 | Y133: 6973 | Z133: -0.3 | AA133: -24 | AC133: 7322.3 | AD133: 1
A134: 17420 | B134: The Hills Shire Council | C134: 9 | D134: 154342 | E134: 157991 | F134: 156166.5 | G134: 161315 | H134: 159653 | I134: 164132 | J134: 162723.5 | K134: 166054 | L134: 165093 | M134: 169508 | N134: 167781 | O134: 173074 | P134: 171291 | Q134: 175748 | R134: 174411 | S134: 177014 | T134: 176381 | U134: 180130 | V134: 178572 | W134: 183563 | X134: 181846.5 | Y134: 183563 | Z134: 1.9 | AA134: 3433 | AC134: 400.5 | AD134: 458.4
A135: 17450 | B135: Tumbarumba Shire Council | C135: 7 | D135: 3668 | E135: 3633 | F135: 3650.5 | G135: 3620 | H135: 3626.5 | I135: 3622 | J135: 3621 | K135: 3572 | L135: 3597 | M135: 3530 | N135: 3551 | O135: 3506 | P135: 3518 | Q135: 3495 | R135: 3500.5 | S135: 3484 | T135: 3489.5 | U135: 3520 | V135: 3502 | W135: 3521 | X135: 3520.5 | Y135: 3521 | Z135: 0 | AA135: 1 | AC135: 4392.5 | AD135: 0.8
A136: 17500 | B136: Tumut Shire Council | C136: 9 | D136: 11384 | E136: 11160 | F136: 11272 | G136: 11080 | H136: 11120 | I136: 11062 | J136: 11071 | K136: 11069 | L136: 11065.5 | M136: 11045 | N136: 11057 | O136: 11141 | P136: 11093 | Q136: 11233 | R136: 11187 | S136: 11272 | T136: 11252.5 | U136: 11307 | V136: 11289.5 | W136: 11316 | X136: 11311.5 | Y136: 11316 | Z136: 0.1 | AA136: 9 | AC136: 4566.6 | AD136: 2.5
A137: 17550 | B137: Tweed Shire Council | C137: 11 | D137: 77868 | E137: 79555 | F137: 78711.5 | G137: 80382 | H137: 79968.5 | I137: 81531 | J137: 80956.5 | K137: 83060 | L137: 82295.5 | M137: 84842 | N137: 83951 | O137: 86539 | P137: 85690.5 | Q137: 87722 | R137: 87130.5 | S137: 88437 | T137: 88079.5 | U137: 88974 | V137: 88705.5 | W137: 90114 | X137: 89544 | Y137: 90114 | Z137: 1.3 | AA137: 1140 | AC137: 1307.4 | AD137: 68.9
A138: 17620 | B138: Upper Hunter Shire Council | C138: 5 | D138: 13335 | E138: 13235 | F138: 13285 | G138: 13281 | H138: 13258 | I138: 13333 | J138: 13307 | K138: 13374 | L138: 13353.5 | M138: 13599 | N138: 13486.5 | O138: 13801 | P138: 13700 | Q138: 13983 | R138: 13892 | S138: 14206 | T138: 14094.5 | U138: 14528 | V138: 14367 | W138: 14650 | X138: 14589 | Y138: 14650 | Z138: 0.8 | AA138: 122 | AC138: 8096.1 | AD138: 1.8
A139: 17640 | B139: Upper Lachlan Shire Council | C139: 11 | D139: 7195 | E139: 7192 | F139: 7193.5 | G139: 7185 | H139: 7188.5 | I139: 7209 | J139: 7197 | K139: 7229 | L139: 7219 | M139: 7276 | N139: 7252.5 | O139: 7333 | P139: 7304.5 | Q139: 7379 | R139: 7356 | S139: 7422 | T139: 7400.5 | U139: 7555 | V139: 7488.5 | W139: 7586 | X139: 7570.5 | Y139: 7586 | Z139: 0.4 | AA139: 31 | AC139: 7127.5 | AD139: 1.1
A140: 17650 | B140: Uralla Shire Council | C140: 10 | D140: 5912 | E140: 5885 | F140: 5898.5 | G140: 5888 | H140: 5886.5 | I140: 5894 | J140: 5891 | K140: 5930 | L140: 5912 | M140: 5996 | N140: 5963 | O140: 6129 | P140: 6062.5 | Q140: 6198 | R140: 6163.5 | S140: 6241 | T140: 6219.5 | U140: 6273 | V140: 6257 | W140: 6370 | X140: 6321.5 | Y140: 6370 | Z140: 1.5 | AA140: 97 | AC140: 3226.5 | AD140: 2
A141: 17700 | B141: Urana Shire Council | C141: 10 | D141: 1365 | E141: 1327 | F141: 1346 | G141: 1303 | H141: 1315 | I141: 1281 | J141: 1292 | K141: 1259 | L141: 1270 | M141: 1235 | N141: 1247 | O141: 1217 | P141: 1226 | Q141: 1202 | R141: 1209.5 | S141: 1185 | T141: 1193.5 | U141: 1180 | V141: 1182.5 | W141: 1157 | X141: 1168.5 | Y141: 1157 | Z141: -1.9 | AA141: -23 | AC141: 3356 | AD141: 0.3
A142: 17750 | B142: Wagga Wagga City Council | C142: 8 | D142: 56897 | E142: 57211 | F142: 57054 | G142: 57761 | H142: 57486 | I142: 58518 | J142: 58139.5 | K142: 59493 | L142: 59005.5 | M142: 60329 | N142: 59911 | O142: 61061 | P142: 60695 | Q142: 61503 | R142: 61282 | S142: 61781 | T142: 61642 | U142: 61781 | V142: 61781 | W142: 62149 | X142: 61965 | Y142: 62149 | Z142: 0.6 | AA142: 368 | AC142: 4825.9 | AD142: 12.9
A143: 17800 | B143: The Council of the Shire of Wakool | C143: 4 | D143: 4695 | E143: 4609 | F143: 4652 | G143: 4538 | H143: 4573.5 | I143: 4468 | J143: 4503 | K143: 4325 | L143: 4396.5 | M143: 4255 | N143: 4290 | O143: 4209 | P143: 4232 | Q143: 4140 | R143: 4174.5 | S143: 4073 | T143: 4106.5 | U143: 4038 | V143: 4055.5 | W143: 3979 | X143: 4008.5 | Y143: 3979 | Z143: -1.5 | AA143: -59 | AC143: 7520.5 | AD143: 0.5
A144: 17850 | B144: Walcha Council | C144: 9 | D144: 3257 | E144: 3244 | F144: 3250.5 | G144: 3244 | H144: 3244 | I144: 3259 | J144: 3251.5 | K144: 3210 | L144: 3234.5 | M144: 3172 | N144: 3191 | O144: 3154 | P144: 3163 | Q144: 3137 | R144: 3145.5 | S144: 3119 | T144: 3128 | U144: 3104 | V144: 3111.5 | W144: 3087 | X144: 3095.5 | Y144: 3087 | Z144: -0.5 | AA144: -17 | AC144: 6261.3 | AD144: 0.5
A145: 17900 | B145: Walgett Shire Council | C145: 10 | D145: 7800 | E145: 7517 | F145: 7658.5 | G145: 7312 | H145: 7414.5 | I145: 7129 | J145: 7220.5 | K145: 6979 | L145: 7054 | M145: 6883 | N145: 6931 | O145: 6914 | P145: 6898.5 | Q145: 6908 | R145: 6911 | S145: 6797 | T145: 6852.5 | U145: 6813 | V145: 6805 | W145: 6785 | X145: 6799 | Y145: 6785 | Z145: -0.4 | AA145: -28 | AC145: 22308.5 | AD145: 0.3
A146: 17950 | B146: Warren Shire Council | C146: 9 | D146: 3111 | E146: 3008 | F146: 3059.5 | G146: 2919 | H146: 2963.5 | I146: 2814 | J146: 2866.5 | K146: 2786 | L146: 2800 | M146: 2789 | N146: 2787.5 | O146: 2807 | P146: 2798 | Q146: 2840 | R146: 2823.5 | S146: 2862 | T146: 2851 | U146: 2903 | V146: 2882.5 | W146: 2910 | X146: 2906.5 | Y146: 2910 | Z146: 0.2 | AA146: 7 | AC146: 10753.8 | AD146: 0.3
A147: 18000 | B147: Warringah Council | C147: 3 | D147: 135796 | E147: 136182 | F147: 135989 | G147: 137171 | H147: 136676.5 | I147: 138322 | J147: 137746.5 | K147: 140629 | L147: 139475.5 | M147: 142853 | N147: 141741 | O147: 144890 | P147: 143871.5 | Q147: 146774 | R147: 145832 | S147: 148423 | T147: 147598.5 | U147: 150358 | V147: 149390.5 | W147: 152636 | X147: 151497 | Y147: 152636 | Z147: 1.5 | AA147: 2278 | AC147: 149.4 | AD147: 1022
A148: 18020 | B148: Warrumbungle Shire Council | C148: 10 | D148: 10446 | E148: 10258 | F148: 10352 | G148: 10155 | H148: 10206.5 | I148: 10034 | J148: 10094.5 | K148: 9952 | L148: 9993 | M148: 9925 | N148: 9938.5 | O148: 9930 | P148: 9927.5 | Q148: 9921 | R148: 9925.5 | S148: 9898 | T148: 9909.5 | U148: 9859 | V148: 9878.5 | W148: 9778 | X148: 9818.5 | Y148: 9778 | Z148: -0.8 | AA148: -81 | AC148: 12371.1 | AD148: 0.8
A149: 18050 | B149: Waverley Council | C149: 2 | D149: 62778 | E149: 62988 | F149: 62883 | G149: 63435 | H149: 63211.5 | I149: 64294 | J149: 63864.5 | K149: 65279 | L149: 64786.5 | M149: 66458 | N149: 65868.5 | O149: 67394 | P149: 66926 | Q149: 68082 | R149: 67738 | S149: 68698 | T149: 68390 | U149: 69515 | V149: 69106.5 | W149: 70706 | X149: 70110.5 | Y149: 70706 | Z149: 1.7 | AA149: 1191 | AC149: 9.2 | AD149: 7649.7
A150: 18100 | B150: Weddin Shire Council | C150: 9 | D150: 3768 | E150: 3756 | F150: 3762 | G150: 3737 | H150: 3746.5 | I150: 3722 | J150: 3729.5 | K150: 3710 | L150: 3716 | M150: 3715 | N150: 3712.5 | O150: 3720 | P150: 3717.5 | Q150: 3733 | R150: 3726.5 | S150: 3759 | T150: 3746 | U150: 3744 | V150: 3751.5 | W150: 3711 | X150: 3727.5 | Y150: 3711 | Z150: -0.9 | AA150: -33 | AC150: 3408.6 | AD150: 1.1
A151: 18150 | B151: Wellington Council | C151: 10 | D151: 8554 | E151: 8458 | F151: 8506 | G151: 8385 | H151: 8421.5 | I151: 8314 | J151: 8349.5 | K151: 8311 | L151: 8312.5 | M151: 8645 | N151: 8478 | O151: 8840 | P151: 8742.5 | Q151: 8881 | R151: 8860.5 | S151: 8833 | T151: 8857 | U151: 8839 | V151: 8836 | W151: 8955 | X151: 8897 | Y151: 8955 | Z151: 1.3 | AA151: 116 | AC151: 4110.1 | AD151: 2.2
A152: 18200 | B152: Wentworth Shire Council | C152: 10 | D152: 7009 | E152: 6946 | F152: 6977.5 | G152: 6915 | H152: 6930.5 | I152: 6926 | J152: 6920.5 | K152: 6963 | L152: 6944.5 | M152: 6964 | N152: 6963.5 | O152: 6932 | P152: 6948 | Q152: 6910 | R152: 6921 | S152: 6837 | T152: 6873.5 | U152: 6838 | V152: 6837.5 | W152: 6832 | X152: 6835 | Y152: 6832 | Z152: -0.1 | AA152: -6 | AC152: 26256.7 | AD152: 0.3
A153: 18250 | B153: Willoughby City Council | C153: 3 | D153: 63389 | E153: 64414 | F153: 63901.5 | G153: 65578 | H153: 64996 | I153: 66481 | J153: 66029.5 | K153: 67809 | L153: 67145 | M153: 68434 | N153: 68121.5 | O153: 69512 | P153: 68973 | Q153: 70256 | R153: 69884 | S153: 71139 | T153: 70697.5 | U153: 72032 | V153: 71585.5 | W153: 73155 | X153: 72593.5 | Y153: 73155 | Z153: 1.6 | AA153: 1123 | AC153: 22.4 | AD153: 3261.6
A154: 18350 | B154: Wingecarribee Shire Council | C154: 4 | D154: 43257 | E154: 43348 | F154: 43302.5 | G154: 43402 | H154: 43375 | I154: 43532 | J154: 43467 | K154: 44054 | L154: 43793 | M154: 44539 | N154: 44296.5 | O154: 45165 | P154: 44852 | Q154: 45761 | R154: 45463 | S154: 46126 | T154: 45943.5 | U154: 46487 | V154: 46306.5 | W154: 47054 | X154: 46770.5 | Y154: 47054 | Z154: 1.2 | AA154: 567 | AC154: 2688.4 | AD154: 17.5
A155: 18400 | B155: Wollondilly Shire Council | C155: 6 | D155: 39215 | E155: 39830 | F155: 39522.5 | G155: 40411 | H155: 40120.5 | I155: 40969 | J155: 40690 | K155: 41589 | L155: 41279 | M155: 42401 | N155: 41995 | O155: 43145 | P155: 42773 | Q155: 43828 | R155: 43486.5 | S155: 44607 | T155: 44217.5 | U155: 45362 | V155: 44984.5 | W155: 46295 | X155: 45828.5 | Y155: 46295 | Z155: 2.1 | AA155: 933 | AC155: 2555.9 | AD155: 18.1
A156: 18450 | B156: Wollongong City Council | C156: 5 | D156: 190475 | E156: 190641 | F156: 190558 | G156: 190721 | H156: 190681 | I156: 190909 | J156: 190815 | K156: 192770 | L156: 191839.5 | M156: 195437 | N156: 194103.5 | O156: 197887 | P156: 196662 | Q156: 200468 | R156: 199177.5 | S156: 202068 | T156: 201268 | U156: 203181 | V156: 202624.5 | W156: 205231 | X156: 204206 | Y156: 205231 | Z156: 1 | AA156: 2050 | AC156: 684 | AD156: 300
A157: 18500 | B157: Woollahra Municipal Council | C157: 2 | D157: 52998 | E157: 52723 | F157: 52860.5 | G157: 52655 | H157: 52689 | I157: 52995 | J157: 52825 | K157: 53564 | L157: 53279.5 | M157: 54076 | N157: 53820 | O157: 54862 | P157: 54469 | Q157: 55497 | R157: 55179.5 | S157: 56320 | T157: 55908.5 | U157: 57032 | V157: 56676 | W157: 57677 | X157: 57354.5 | Y157: 57677 | Z157: 1.1 | AA157: 645 | AC157: 12.3 | AD157: 4699.1
A158: 18550 | B158: Wyong Shire Council | C158: 7 | D158: 138582 | E158: 139498 | F158: 139040 | G158: 140670 | H158: 140084 | I158: 141893 | J158: 141281.5 | K158: 144227 | L158: 143060 | M158: 147869 | N158: 146048 | O158: 150400 | P158: 149134.5 | Q158: 152675 | R158: 151537.5 | S158: 154334 | T158: 153504.5 | U158: 155844 | V158: 155089 | W158: 157358 | X158: 156601 | Y158: 157358 | Z158: 1 | AA158: 1514 | AC158: 739.8 | AD158: 212.7
A159: 18710 | B159: Yass Valley Council | C159: 11 | D159: 12772 | E159: 13058 | F159: 12915 | G159: 13247 | H159: 13152.5 | I159: 13500 | J159: 13373.5 | K159: 13916 | L159: 13708 | M159: 14310 | N159: 14113 | O159: 14714 | P159: 14512 | Q159: 15227 | R159: 14970.5 | S159: 15615 | T159: 15421 | U159: 15981 | V159: 15798 | W159: 16270 | X159: 16125.5 | Y159: 16270 | Z159: 1.8 | AA159: 289 | AC159: 3998.1 | AD159: 4.1
A160: 18750 | B160: Young Shire Council | C160: 11 | D160: 11912 | E160: 11984 | F160: 11948 | G160: 12102 | H160: 12043 | I160: 12195 | J160: 12148.5 | K160: 12249 | L160: 12222 | M160: 12310 | N160: 12279.5 | O160: 12402 | P160: 12356 | Q160: 12527 | R160: 12464.5 | S160: 12619 | T160: 12573 | U160: 12709 | V160: 12664 | W160: 12699 | X160: 12704 | Y160: 12699 | Z160: -0.1 | AA160: -10 | AC160: 2692.7 | AD160: 4.7
A162: 19399 | B162: Unincorporated NSW | D162: 1162 | E162: 1135 | G162: 1114 | I162: 1095 | K162: 1100 | M162: 1107 | O162: 1107 | Q162: 1114 | S162: 1119 | U162: 1130 | W162: 1121 | Z162: -0.8 | AA162: -9 | AC162: 93213.5 | AD162: 0
B164: TOTAL NEW SOUTH WALES | D164: 6620715 | E164: 6650735 | G164: 6693206 | I164: 6742690 | K164: 6834156 | M164: 6943461 | O164: 7053755 | Q164: 7144292 | S164: 7218529 | U164: 7307183 | W164: 7410399 | Z164: 1.4 | AA164: 103216 | AC164: 800808.8 | AD164: 9.3

Sheet Sheet1 (hidden)

Sheet Sheet2
